Workbook

Sheet Index
A1: Index and File Details
B3: Index | H3: File Details
B5: Inputs | D5: Calculations | F5: Outputs | I5: Model | J5: Transgrid | System Operability Opex Forecast Model
I6: Author | J6: Transgrid
B7: Notes & Assumptions | D7: Calculations | F7: Outputs | I7: Revision | J7: 2025-12-15
B8: =Inputs!A1 -> Inputs | I8: Status | J8: Revenue Proposal
B12: Model Checks | H12: Instructions
B14: Worksheet | I14: Input Sheets
B15: =B7 -> Notes & Assumptions | D15: N/A | I15: Fill in any cells marked as input cells as seen on the right => | K15: user input
B16: =B8 -> Inputs | D16: N/A | I16: Historical / Not applicable
B17: =D7 -> Calculations | D17: =IF(SUM(Calculations!A2:A55)=0,0,1) -> 0 | I17: Cells not marked as inputs should not be modified.
B18: =F7 -> Outputs | D18: =IF(SUM(Outputs!A3:A92)=0,0,1) -> 0 | I18: Confidential information | K18: user input
B20: Total Error Check | D20: =IF(SUM(D15:D18)=0,0,1) -> 0
B22: End

Sheet Notes & Assumptions
A1: Assumptions & Notes
E3: User inputs in cells coloured like this
C4: * | E4: 1. Inputs and calculations are in $. Some outputs are $million.
C5: * | E5: 2. Financial years are recorded in the Opex Forecast Model as tax years (e.g. 2017/18 is shown as 2018, 2018/19 is shown as 2019)
C6: * | E6: 3. Escalation is treated as follows:
E7: a. CPI escalation and Commodity escalation are treated separately.
A10: Modifications
A11: Date | B11: Version | D11: Who | E11: Notes
A12: 2023-06-26 | B12: v1.1 | E12: Initial model development

Sheet Inputs
A1: Inputs
B3: Output Reporting Format and Year
B4: Real | C4: 2023 | D4: The Financial Year that results are reported in. | H4: =IF(Real_or_Nom="Real", "Real $" & Report_Year, "$ Nominal") -> Real $2023
B6: Indexation and escalation
B8: Forecasts | L8: Rates
B9: Item | C9: Source | D9: Units | L9: 2023 | M9: =L9+1 -> 2024 | N9: 2025 | O9: 2026 | P9: 2027 | Q9: 2028 | R9: =Q9+1 -> 2029 | S9: =R9+1 -> 2030 | T9: =S9+1 -> 2031 | U9: =T9+1 -> 2032 | V9: 2033
B10: Actual / Forecast Inflation | C10: ABS / RBA / PTRM | D10: % | L10: 0.06026962728 | M10: 0.03814510097 | N10: 0.02089337176 | O10: 0.02919304851 | P10: 0.02919304851 | Q10: 0.02919304851 | R10: 0.02919304851 | S10: 0.02919304851 | T10: 0.02919304851 | U10: 0.02919304851 | V10: 0.02919304851 | X10: Note: Currently set to June to June unlagged for actual/estimates and PTRM for forecasts
B11: Real labour escalation | C11: Transgrid AER FD | D11: % | M11: 0.003904656476 | N11: 0.01307648255 | O11: 0.01154643895 | P11: 0.004330457586 | Q11: 0.003009413338 | R11: 0.00717348978 | S11: 0.00717348978 | T11: 0.00717348978 | U11: 0.00717348978 | V11: 0.00717348978 | X11: Note: Based on Final Decision values applied to both the opex and capex models
B13: Cumulative factors | L13: Cumulative Factors
B14: Item | C14: Source | D14: Units | L14: =L$9 -> 2023 | M14: 2024 | N14: 2025 | O14: 2026 | P14: 2027 | Q14: 2028 | R14: 2029 | S14: 2030 | T14: 2031 | U14: 2032 | V14: 2033
B15: Nominal (mid year) to Real 2023 (end year) | C15: Calculated | D15: Factor | L15: =(1+L10)^0.5 -> 1.029693948 | M15: =L15/(1+L10)^0.5/(1+M10)^0.5 -> 0.9814563078 | N15: 0.953348635 | O15: 0.9300646435 | P15: 0.903683371 | Q15: 0.878050403 | R15: 0.8531445138 | S15: 0.8289450799 | T15: 0.8054320626 | U15: 0.7825859918 | V15: 0.7603879495 | X15: Note: this index converts from nominal mid year dollars for each year between 2021-22 to 2030-31 to dollars as at the end of 2025-26 (i.e., Real 2026, 30 June 2026).
B16: Nominal (end year) to Real 2023 (end year) | C16: Calculated | D16: Factor | L16: 1 | M16: =L16/(1+M10) -> 0.9632564841 | N16: 0.9435426958 | O16: 0.9167791186 | P16: 0.8907746898 | Q16: 0.8655078764 | R16: 0.8409577558 | S16: 0.8171039992 | T16: 0.793926854 | U16: 0.7714071283 | V16: 0.7495261743
B17: Labour escalation from 2027 | C17: Calculated | D17: Factor | L17: =M17 -> 1 | M17: =N17 -> 1 | N17: =O17 -> 1 | O17: =P17 -> 1 | P17: 1 | Q17: =P17*(1+Q11) -> 1.003009413 | R17: 1.010204491 | S17: 1.017451183 | T17: 1.024749858 | U17: 1.032100891 | V17: 1.039504656
B19: Operating costs
B21: Direct costs | F21: Conversion | I21: Non labour rate | J21: Labour rate | L21: Headcount Forecast (FTEs) | X21: Material (Number) | AJ21: Hours per year
B22: Item | C22: Resource Description | D22: Units | F22: Dollar Year | G22: Escalation Year | H22: Timing | I22: $ per Unit | J22: $ per hour per FTE | L22: =L$9 -> 2023 | M22: 2024 | N22: 2025 | O22: 2026 | P22: 2027 | Q22: 2028 | R22: 2029 | S22: 2030 | T22: 2031 | U22: 2032 | V22: 2033 | X22: =L22 -> 2023 | Y22: 2024 | Z22: 2025 | AA22: 2026 | AB22: 2027 | AC22: 2028 | AD22: 2029 | AE22: 2030 | AF22: 2031 | AG22: 2032 | AH22: 2033 | AJ22: Hours
B23: Network Operations | AJ23: =(7*5*48) -> 1680
B24: System Operator ( Control Room Operator) | C24: 2 new control room staff to maintain new forecasting capabilities | D24: Various | F24: 2025 | G24: 2026 | H24: End | I24: 0 | J24: 145.9693714 | N24: 0 | O24: 0 | P24: 0 | Q24: 0 | R24: 0 | S24: 0 | T24: 0.6666666667 | U24: 2 | V24: 2 | Z24: 0 | AA24: 0 | AB24: 0 | AC24: 0 | AD24: 0 | AE24: 0 | AF24: 0 | AG24: 0 | AH24: 0
B25: SCADA Maintenance Engineer | C25: 1 role to maintain the training simulator software and configurations | D25: Various | F25: 2025 | G25: 2026 | H25: End | I25: 0 | J25: 122.8683429 | N25: 0 | O25: 0 | P25: 0 | Q25: 0 | R25: 0.25 | S25: 1 | T25: 1 | U25: 1 | V25: 1 | Z25: 0 | AA25: 0 | AB25: 0 | AC25: 0 | AD25: 0 | AE25: 0 | AF25: 0 | AG25: 0 | AH25: 0
B26: SCADA Maintenance Engineer | C26: 5 new roles : 5.5x maintain SCADA/EMS evergreen less 2 existing SCADA engineers redeployed to evergreen = 3.5 , 1 x test automation developer, 0.5 x SCADA Engineer (alarm business rules mgt and integration) | D26: Various | F26: 2025 | G26: 2026 | H26: End | I26: 0 | J26: 122.8683429 | N26: 0 | O26: 0 | P26: 0 | Q26: 0 | R26: 1.25 | S26: 5 | T26: 4.999999612 | U26: 4.999999612 | V26: 4.999999612 | Z26: 0 | AA26: 0 | AB26: 0 | AC26: 0 | AD26: 0 | AE26: 0 | AF26: 0 | AG26: 0 | AH26: 0
B27: System Data Analyst ( Network Model Management) | C27: 1 network model management role | D27: Various | F27: 2025 | G27: 2026 | H27: End | I27: 0 | J27: 145.9693714 | N27: 0 | O27: 0 | P27: 0 | Q27: 0 | R27: 0.25 | S27: 1 | T27: 1 | U27: 1 | V27: 1 | Z27: 0 | AA27: 0 | AB27: 0 | AC27: 0 | AD27: 0 | AE27: 0 | AF27: 0 | AG27: 0 | AH27: 0
B28: Enhanced SCADA/EMS | C28: c-i-c | D28: Various | F28: 2025 | G28: 2026 | H28: End | I28: 1019400 | J28: 0 | N28: 0 | O28: 0 | P28: 0 | Q28: 0 | R28: 0 | S28: 0 | T28: 0 | U28: 0 | V28: 0 | Z28: 0 | AA28: 0 | AB28: 0 | AC28: 0 | AD28: 0.25 | AE28: 1 | AF28: 1 | AG28: 1 | AH28: 1
B29: Training LMS | C29: c-i-c | D29: Various | F29: 2025 | G29: 2026 | H29: End | I29: 12000 | J29: 0 | N29: 0 | O29: 0 | P29: 0 | Q29: 0 | R29: 0 | S29: 0 | T29: 0 | U29: 0 | V29: 0 | Z29: 0 | AA29: 0 | AB29: 0 | AC29: 0 | AD29: 0.25 | AE29: 1 | AF29: 1 | AG29: 1 | AH29: 1
B30: Wide Area Monitoring | C30: c-i-c | D30: Various | F30: 2025 | G30: 2026 | H30: End | I30: 577300 | J30: 0 | N30: 0 | O30: 0 | P30: 0 | Q30: 0 | R30: 0 | S30: 0 | T30: 0 | U30: 0 | V30: 0 | Z30: 0 | AA30: 0 | AB30: 0 | AC30: 0 | AD30: 0 | AE30: 0 | AF30: 0.3333333333 | AG30: 1 | AH30: 1
B31: Alarm Management Technologies | C31: c-i-c | D31: Various | F31: 2025 | G31: 2026 | H31: End | I31: 820000 | J31: 0 | N31: 0 | O31: 0 | P31: 0 | Q31: 0 | R31: 0 | S31: 0 | T31: 0 | U31: 0 | V31: 0 | Z31: 0 | AA31: 0 | AB31: 0 | AC31: 0 | AD31: 0.25 | AE31: 1 | AF31: 1 | AG31: 1 | AH31: 1
B32: Hardware maintenance uplift | C32: c-i-c | D32: Various | F32: 2025 | G32: 2026 | H32: End | I32: 1028031 | J32: 0 | N32: 0 | O32: 0 | P32: 0 | Q32: 0 | R32: 0 | S32: 0 | T32: 0 | U32: 0 | V32: 0 | Z32: 0 | AA32: 0 | AB32: 0 | AC32: 0 | AD32: 0.25 | AE32: 1 | AF32: 1 | AG32: 1 | AH32: 1
B33: Training attendence during the project | C33: provision of training during the OT uplift program which cannot be capitalised. Split across the two major release dates | D33: Various | F33: 2025 | G33: 2026 | H33: End | I33: 396328 | J33: 0 | N33: 0 | O33: 0 | P33: 0 | Q33: 0 | R33: 0 | S33: 0 | T33: 0 | U33: 0 | V33: 0 | Z33: 0 | AA33: 0 | AB33: 0 | AC33: 0 | AD33: 1.326186896 | AE33: 0 | AF33: 0.9154639591 | AG33: 0 | AH33: 0
B34: Transgrid scope - Hardware maintenance and software licensing uplift | C34: c-i-c | D34: Various | F34: 2025 | G34: 2026 | H34: End | I34: 0 | J34: 367.1875 | N34: 0 | O34: 0 | P34: 0 | Q34: 0.1823708207 | R34: 0.3201621074 | S34: 0.3404255319 | T34: 0.3404255319 | U34: 0.3404255319 | V34: 0.3404255319 | Z34: 0 | AA34: 0 | AB34: 0 | AC34: 0 | AD34: 0 | AE34: 0 | AF34: 0 | AG34: 0 | AH34: 0
B35: Network Planning
B36: Engineer ( Operational Planner) | C36: Engineer ( Operational Planner) | D36: Various | F36: 2025 | G36: 2026 | H36: End | I36: 0 | J36: 145.9693714 | N36: 0 | O36: 0 | P36: 0 | Q36: 1.666666667 | R36: 2.5 | S36: 4 | T36: 4.666666667 | U36: 6 | V36: 6 | Z36: 0 | AA36: 0 | AB36: 0 | AC36: 0 | AD36: 0 | AE36: 0 | AF36: 0 | AG36: 0 | AH36: 0
B37: Data modelling and network management | C37: c-i-c | D37: Various | F37: 2025 | G37: 2026 | H37: End | I37: 643500 | J37: 0 | N37: 0 | O37: 0 | P37: 0 | Q37: 0 | R37: 0 | S37: 0 | T37: 0 | U37: 0 | V37: 0 | Z37: 0 | AA37: 0 | AB37: 0 | AC37: 0 | AD37: 0.25 | AE37: 1 | AF37: 1 | AG37: 1 | AH37: 1
B38: Operational planning system | C38: c-i-c | D38: Various | F38: 2025 | G38: 2026 | H38: End | I38: 346295 | J38: 0 | N38: 0 | O38: 0 | P38: 0 | Q38: 0 | R38: 0 | S38: 0 | T38: 0 | U38: 0 | V38: 0 | Z38: 0 | AA38: 0 | AB38: 0 | AC38: 0.7590325204 | AD38: 0.9108390245 | AE38: 0.9108390245 | AF38: 0.9108390245 | AG38: 0.9108390245 | AH38: 0.9108390245
B39: Asset Management
D40: Various | F40: 2025 | G40: 2026 | H40: End
D41: Various | F41: 2025 | G41: 2026 | H41: End
B42: Commercial
D43: Various | F43: 2025 | G43: 2026 | H43: End
D44: Various | F44: 2025 | G44: 2026 | H44: End
B45: Delivery
D46: Various | F46: 2025 | G46: 2026 | H46: End
D47: Various | F47: 2025 | G47: 2026 | H47: End
B48: Finance & Audit
D49: Various | F49: 2025 | G49: 2026 | H49: End
D50: Various | F50: 2025 | G50: 2026 | H50: End
B51: Regulatory submissions
D52: Various | F52: 2025 | G52: 2026 | H52: End
D53: Various | F53: 2025 | G53: 2026 | H53: End
B55: Labour costs | L55: =SUMPRODUCT($J$23:$J$53,L$23:L$53)*$AJ$23 -> 0 | M55: 0 | N55: 0 | O55: 0 | P55: 0 | Q55: 521214.24 | R55: 1181506.72 | S55: 2674655.616 | T55: 3001626.928 | U55: 3655569.712 | V55: 3655569.712 | X55: =SUMPRODUCT($I$23:$I$53,X$23:X$53) -> 0 | Y55: 0 | Z55: 0 | AA55: 0 | AB55: 0 | AC55: 262849.1667 | AD55: 1721756.75 | AE55: 3838350 | AF55: 4393607.333 | AG55: 4415650 | AH55: 4415650 | AJ55: Note: this is the total cost excluding labour escalation and inflation
B57: Debt raising costs
B59: =B57 -> Debt raising costs | F59: Conversion | L59: ="Cost (As Incurred) (Real $"&F61&", "&G61&" year)" -> Cost (As Incurred) (Real $2023, End year)
B60: Item | C60: Source | D60: Units | F60: Dollar Year | G60: Timing | L60: =L$14 -> 2023 | M60: 2024 | N60: 2025 | O60: 2026 | P60: 2027 | Q60: 2028 | R60: 2029 | S60: 2030 | T60: 2031 | U60: 2032 | V60: 2033
B61: Debt raising cost allowance | C61: PTRM | D61: $Dollars | F61: 2023 | G61: End | M61: 0 | N61: 2312.093906 | O61: 4178.79544 | P61: 4643.31147 | Q61: 14265.43275
B63: End

Sheet Calculations
A1: Calculations
B3: =Inputs!$B$19 -> Operating costs | F3: 2023-28 Regulatory Period | K3: 2023-28 Regulatory Period | P3: Total
B4: Component | C4: Dollar basis | D4: Unit | E4: =Inputs!L$14 -> 2023 | F4: =Inputs!M$14 -> 2024 | G4: =Inputs!N$14 -> 2025 | H4: =Inputs!O$14 -> 2026 | I4: =Inputs!P$14 -> 2027 | J4: =Inputs!Q$14 -> 2028 | K4: =Inputs!R$14 -> 2029 | L4: =Inputs!S$14 -> 2030 | M4: =Inputs!T$14 -> 2031 | N4: =Inputs!U$14 -> 2032 | O4: =Inputs!V$14 -> 2033
B5: =Inputs!B23 -> Network Operations
B6: Labour | C6: =Inputs!$H$4 -> Real $2023 | D6: Dollars | E6: =SUMPRODUCT(Inputs!$J$24:$J$34,Inputs!L$24:L$34)*Inputs!$AJ$23*INDEX(IF($D$52="Mid",Inputs!$L$15:$V$15,Inputs!$L$16:$V$16),MATCH($C$52,Inputs!$L$14:$V$14,0)) -> 0 | F6: =SUMPRODUCT(Inputs!$J$24:$J$34,Inputs!M$24:M$34)*Inputs!$AJ$23*INDEX(IF($D$52="Mid",Inputs!$L$15:$V$15,Inputs!$L$16:$V$16),MATCH($C$52,Inputs!$L$14:$V$14,0)) -> 0 | G6: =SUMPRODUCT(Inputs!$J$24:$J$34,Inputs!N$24:N$34)*Inputs!$AJ$23*INDEX(IF($D$52="Mid",Inputs!$L$15:$V$15,Inputs!$L$16:$V$16),MATCH($C$52,Inputs!$L$14:$V$14,0)) -> 0 | H6: =SUMPRODUCT(Inputs!$J$24:$J$34,Inputs!O$24:O$34)*Inputs!$AJ$23*INDEX(IF($D$52="Mid",Inputs!$L$15:$V$15,Inputs!$L$16:$V$16),MATCH($C$52,Inputs!$L$14:$V$14,0)) -> 0 | I6: =SUMPRODUCT(Inputs!$J$24:$J$34,Inputs!P$24:P$34)*Inputs!$AJ$23*INDEX(IF($D$52="Mid",Inputs!$L$15:$V$15,Inputs!$L$16:$V$16),MATCH($C$52,Inputs!$L$14:$V$14,0)) -> 0 | J6: =SUMPRODUCT(Inputs!$J$24:$J$34,Inputs!Q$24:Q$34)*Inputs!$AJ$23*INDEX(IF($D$52="Mid",Inputs!$L$15:$V$15,Inputs!$L$16:$V$16),MATCH($C$52,Inputs!$L$14:$V$14,0)) -> 106148.5533 | K6: =SUMPRODUCT(Inputs!$J$24:$J$34,Inputs!R$24:R$34)*Inputs!$AJ$23*INDEX(IF($D$52="Mid",Inputs!$L$15:$V$15,Inputs!$L$16:$V$16),MATCH($C$52,Inputs!$L$14:$V$14,0)) -> 536343.032 | L6: =SUMPRODUCT(Inputs!$J$24:$J$34,Inputs!S$24:S$34)*Inputs!$AJ$23*INDEX(IF($D$52="Mid",Inputs!$L$15:$V$15,Inputs!$L$16:$V$16),MATCH($C$52,Inputs!$L$14:$V$14,0)) -> 1598117.364 | M6: =SUMPRODUCT(Inputs!$J$24:$J$34,Inputs!T$24:T$34)*Inputs!$AJ$23*INDEX(IF($D$52="Mid",Inputs!$L$15:$V$15,Inputs!$L$16:$V$16),MATCH($C$52,Inputs!$L$14:$V$14,0)) -> 1752373.023 | N6: =SUMPRODUCT(Inputs!$J$24:$J$34,Inputs!U$24:U$34)*Inputs!$AJ$23*INDEX(IF($D$52="Mid",Inputs!$L$15:$V$15,Inputs!$L$16:$V$16),MATCH($C$52,Inputs!$L$14:$V$14,0)) -> 2060884.492 | O6: =SUMPRODUCT(Inputs!$J$24:$J$34,Inputs!V$24:V$34)*Inputs!$AJ$23*INDEX(IF($D$52="Mid",Inputs!$L$15:$V$15,Inputs!$L$16:$V$16),MATCH($C$52,Inputs!$L$14:$V$14,0)) -> 2060884.492 | P6: =SUM(E6:O6) -> 8114750.957
B7: Labour escalation | C7: =Inputs!$H$4 -> Real $2023 | D7: Dollars | E7: =E6*(Inputs!L$17-1) -> 0 | F7: =F6*(Inputs!M$17-1) -> 0 | G7: =G6*(Inputs!N$17-1) -> 0 | H7: =H6*(Inputs!O$17-1) -> 0 | I7: =I6*(Inputs!P$17-1) -> 0 | J7: =J6*(Inputs!Q$17-1) -> 319.444872 | K7: =K6*(Inputs!R$17-1) -> 5473.107704 | L7: =L6*(Inputs!S$17-1) -> 27889.03811 | M7: =M6*(Inputs!T$17-1) -> 43370.98413 | N7: =N6*(Inputs!U$17-1) -> 66156.22844 | O7: =O6*(Inputs!V$17-1) -> 81414.53331 | P7: =SUM(E7:O7) -> 224623.3366
B8: Non labour | C8: =Inputs!$H$4 -> Real $2023 | D8: Dollars | E8: =SUMPRODUCT(Inputs!$I$24:$I$34,Inputs!X$24:X$34)*INDEX(IF($D$53="Mid",Inputs!$L$15:$V$15,Inputs!$L$16:$V$16),MATCH($C$53,Inputs!$L$14:$V$14,0)) -> 0 | F8: =SUMPRODUCT(Inputs!$I$24:$I$34,Inputs!Y$24:Y$34)*INDEX(IF($D$53="Mid",Inputs!$L$15:$V$15,Inputs!$L$16:$V$16),MATCH($C$53,Inputs!$L$14:$V$14,0)) -> 0 | G8: =SUMPRODUCT(Inputs!$I$24:$I$34,Inputs!Z$24:Z$34)*INDEX(IF($D$53="Mid",Inputs!$L$15:$V$15,Inputs!$L$16:$V$16),MATCH($C$53,Inputs!$L$14:$V$14,0)) -> 0 | H8: =SUMPRODUCT(Inputs!$I$24:$I$34,Inputs!AA$24:AA$34)*INDEX(IF($D$53="Mid",Inputs!$L$15:$V$15,Inputs!$L$16:$V$16),MATCH($C$53,Inputs!$L$14:$V$14,0)) -> 0 | I8: =SUMPRODUCT(Inputs!$I$24:$I$34,Inputs!AB$24:AB$34)*INDEX(IF($D$53="Mid",Inputs!$L$15:$V$15,Inputs!$L$16:$V$16),MATCH($C$53,Inputs!$L$14:$V$14,0)) -> 0 | J8: =SUMPRODUCT(Inputs!$I$24:$I$34,Inputs!AC$24:AC$34)*INDEX(IF($D$53="Mid",Inputs!$L$15:$V$15,Inputs!$L$16:$V$16),MATCH($C$53,Inputs!$L$14:$V$14,0)) -> 0 | K8: =SUMPRODUCT(Inputs!$I$24:$I$34,Inputs!AD$24:AD$34)*INDEX(IF($D$53="Mid",Inputs!$L$15:$V$15,Inputs!$L$16:$V$16),MATCH($C$53,Inputs!$L$14:$V$14,0)) -> 1175147.281 | L8: =SUMPRODUCT(Inputs!$I$24:$I$34,Inputs!AE$24:AE$34)*INDEX(IF($D$53="Mid",Inputs!$L$15:$V$15,Inputs!$L$16:$V$16),MATCH($C$53,Inputs!$L$14:$V$14,0)) -> 2716866.088 | M8: =SUMPRODUCT(Inputs!$I$24:$I$34,Inputs!AF$24:AF$34)*INDEX(IF($D$53="Mid",Inputs!$L$15:$V$15,Inputs!$L$16:$V$16),MATCH($C$53,Inputs!$L$14:$V$14,0)) -> 3240775.089 | N8: =SUMPRODUCT(Inputs!$I$24:$I$34,Inputs!AG$24:AG$34)*INDEX(IF($D$53="Mid",Inputs!$L$15:$V$15,Inputs!$L$16:$V$16),MATCH($C$53,Inputs!$L$14:$V$14,0)) -> 3261573.287 | O8: =SUMPRODUCT(Inputs!$I$24:$I$34,Inputs!AH$24:AH$34)*INDEX(IF($D$53="Mid",Inputs!$L$15:$V$15,Inputs!$L$16:$V$16),MATCH($C$53,Inputs!$L$14:$V$14,0)) -> 3261573.287 | P8: =SUM(E8:O8) -> 13655935.03
B9: Sub-Total | C9: =Inputs!$H$4 -> Real $2023 | D9: Dollars | E9: =SUM(E6:E8) -> 0 | F9: 0 | G9: 0 | H9: 0 | I9: 0 | J9: 106467.9982 | K9: 1716963.42 | L9: 4342872.491 | M9: 5036519.097 | N9: 5388614.007 | O9: 5403872.312 | P9: 21995309.32
B10: =Inputs!B35 -> Network Planning
B11: =$B$6 -> Labour | C11: =Inputs!$H$4 -> Real $2023 | D11: Dollars | E11: =SUMPRODUCT(Inputs!$J$36:$J$38,Inputs!L$36:L$38)*Inputs!$AJ$23*INDEX(IF($D$52="Mid",Inputs!$L$15:$V$15,Inputs!$L$16:$V$16),MATCH($C$52,Inputs!$L$14:$V$14,0)) -> 0 | F11: =SUMPRODUCT(Inputs!$J$36:$J$38,Inputs!M$36:M$38)*Inputs!$AJ$23*INDEX(IF($D$52="Mid",Inputs!$L$15:$V$15,Inputs!$L$16:$V$16),MATCH($C$52,Inputs!$L$14:$V$14,0)) -> 0 | G11: =SUMPRODUCT(Inputs!$J$36:$J$38,Inputs!N$36:N$38)*Inputs!$AJ$23*INDEX(IF($D$52="Mid",Inputs!$L$15:$V$15,Inputs!$L$16:$V$16),MATCH($C$52,Inputs!$L$14:$V$14,0)) -> 0 | H11: =SUMPRODUCT(Inputs!$J$36:$J$38,Inputs!O$36:O$38)*Inputs!$AJ$23*INDEX(IF($D$52="Mid",Inputs!$L$15:$V$15,Inputs!$L$16:$V$16),MATCH($C$52,Inputs!$L$14:$V$14,0)) -> 0 | I11: =SUMPRODUCT(Inputs!$J$36:$J$38,Inputs!P$36:P$38)*Inputs!$AJ$23*INDEX(IF($D$52="Mid",Inputs!$L$15:$V$15,Inputs!$L$16:$V$16),MATCH($C$52,Inputs!$L$14:$V$14,0)) -> 0 | J11: =SUMPRODUCT(Inputs!$J$36:$J$38,Inputs!Q$36:Q$38)*Inputs!$AJ$23*INDEX(IF($D$52="Mid",Inputs!$L$15:$V$15,Inputs!$L$16:$V$16),MATCH($C$52,Inputs!$L$14:$V$14,0)) -> 385639.3358 | K11: =SUMPRODUCT(Inputs!$J$36:$J$38,Inputs!R$36:R$38)*Inputs!$AJ$23*INDEX(IF($D$52="Mid",Inputs!$L$15:$V$15,Inputs!$L$16:$V$16),MATCH($C$52,Inputs!$L$14:$V$14,0)) -> 578459.0038 | L11: =SUMPRODUCT(Inputs!$J$36:$J$38,Inputs!S$36:S$38)*Inputs!$AJ$23*INDEX(IF($D$52="Mid",Inputs!$L$15:$V$15,Inputs!$L$16:$V$16),MATCH($C$52,Inputs!$L$14:$V$14,0)) -> 925534.406 | M11: =SUMPRODUCT(Inputs!$J$36:$J$38,Inputs!T$36:T$38)*Inputs!$AJ$23*INDEX(IF($D$52="Mid",Inputs!$L$15:$V$15,Inputs!$L$16:$V$16),MATCH($C$52,Inputs!$L$14:$V$14,0)) -> 1079790.14 | N11: =SUMPRODUCT(Inputs!$J$36:$J$38,Inputs!U$36:U$38)*Inputs!$AJ$23*INDEX(IF($D$52="Mid",Inputs!$L$15:$V$15,Inputs!$L$16:$V$16),MATCH($C$52,Inputs!$L$14:$V$14,0)) -> 1388301.609 | O11: =SUMPRODUCT(Inputs!$J$36:$J$38,Inputs!V$36:V$38)*Inputs!$AJ$23*INDEX(IF($D$52="Mid",Inputs!$L$15:$V$15,Inputs!$L$16:$V$16),MATCH($C$52,Inputs!$L$14:$V$14,0)) -> 1388301.609 | P11: =SUM(E11:O11) -> 5746026.104
B12: =$B$7 -> Labour escalation | C12: =Inputs!$H$4 -> Real $2023 | D12: Dollars | E12: =E11*(Inputs!L$17-1) -> 0 | F12: =F11*(Inputs!M$17-1) -> 0 | G12: =G11*(Inputs!N$17-1) -> 0 | H12: =H11*(Inputs!O$17-1) -> 0 | I12: =I11*(Inputs!P$17-1) -> 0 | J12: =J11*(Inputs!Q$17-1) -> 1160.548161 | K12: =K11*(Inputs!R$17-1) -> 5902.879763 | L12: =L11*(Inputs!S$17-1) -> 16151.67002 | M12: =M11*(Inputs!T$17-1) -> 26724.65304 | N12: =N11*(Inputs!U$17-1) -> 44565.71863 | O12: =O11*(Inputs!V$17-1) -> 54844.37776 | P12: =SUM(E12:O12) -> 149349.8474
B13: =$B$8 -> Non labour | C13: =Inputs!$H$4 -> Real $2023 | D13: Dollars | E13: =SUMPRODUCT(Inputs!$I$36:$I$38,Inputs!X$36:X$38)*INDEX(IF($D$53="Mid",Inputs!$L$15:$V$15,Inputs!$L$16:$V$16),MATCH($C$53,Inputs!$L$14:$V$14,0)) -> 0 | F13: =SUMPRODUCT(Inputs!$I$36:$I$38,Inputs!Y$36:Y$38)*INDEX(IF($D$53="Mid",Inputs!$L$15:$V$15,Inputs!$L$16:$V$16),MATCH($C$53,Inputs!$L$14:$V$14,0)) -> 0 | G13: =SUMPRODUCT(Inputs!$I$36:$I$38,Inputs!Z$36:Z$38)*INDEX(IF($D$53="Mid",Inputs!$L$15:$V$15,Inputs!$L$16:$V$16),MATCH($C$53,Inputs!$L$14:$V$14,0)) -> 0 | H13: =SUMPRODUCT(Inputs!$I$36:$I$38,Inputs!AA$36:AA$38)*INDEX(IF($D$53="Mid",Inputs!$L$15:$V$15,Inputs!$L$16:$V$16),MATCH($C$53,Inputs!$L$14:$V$14,0)) -> 0 | I13: =SUMPRODUCT(Inputs!$I$36:$I$38,Inputs!AB$36:AB$38)*INDEX(IF($D$53="Mid",Inputs!$L$15:$V$15,Inputs!$L$16:$V$16),MATCH($C$53,Inputs!$L$14:$V$14,0)) -> 0 | J13: =SUMPRODUCT(Inputs!$I$36:$I$38,Inputs!AC$36:AC$38)*INDEX(IF($D$53="Mid",Inputs!$L$15:$V$15,Inputs!$L$16:$V$16),MATCH($C$53,Inputs!$L$14:$V$14,0)) -> 248009.4113 | K13: =SUMPRODUCT(Inputs!$I$36:$I$38,Inputs!AD$36:AD$38)*INDEX(IF($D$53="Mid",Inputs!$L$15:$V$15,Inputs!$L$16:$V$16),MATCH($C$53,Inputs!$L$14:$V$14,0)) -> 449403.7248 | L13: =SUMPRODUCT(Inputs!$I$36:$I$38,Inputs!AE$36:AE$38)*INDEX(IF($D$53="Mid",Inputs!$L$15:$V$15,Inputs!$L$16:$V$16),MATCH($C$53,Inputs!$L$14:$V$14,0)) -> 904781.0183 | M13: =SUMPRODUCT(Inputs!$I$36:$I$38,Inputs!AF$36:AF$38)*INDEX(IF($D$53="Mid",Inputs!$L$15:$V$15,Inputs!$L$16:$V$16),MATCH($C$53,Inputs!$L$14:$V$14,0)) -> 904781.0183 | N13: =SUMPRODUCT(Inputs!$I$36:$I$38,Inputs!AG$36:AG$38)*INDEX(IF($D$53="Mid",Inputs!$L$15:$V$15,Inputs!$L$16:$V$16),MATCH($C$53,Inputs!$L$14:$V$14,0)) -> 904781.0183 | O13: =SUMPRODUCT(Inputs!$I$36:$I$38,Inputs!AH$36:AH$38)*INDEX(IF($D$53="Mid",Inputs!$L$15:$V$15,Inputs!$L$16:$V$16),MATCH($C$53,Inputs!$L$14:$V$14,0)) -> 904781.0183 | P13: =SUM(E13:O13) -> 4316537.209
B14: Sub-Total | C14: =Inputs!$H$4 -> Real $2023 | D14: Dollars | E14: =SUM(E11:E13) -> 0 | F14: 0 | G14: 0 | H14: 0 | I14: 0 | J14: 634809.2953 | K14: 1033765.608 | L14: 1846467.094 | M14: 2011295.812 | N14: 2337648.346 | O14: 2347927.005 | P14: 10211913.16
B15: =Inputs!B39 -> Asset Management
B16: =$B$6 -> Labour | C16: =Inputs!$H$4 -> Real $2023 | D16: Dollars | E16: =SUMPRODUCT(Inputs!$J$40:$J$41,Inputs!L$40:L$41)*Inputs!$AJ$23*INDEX(IF($D$52="Mid",Inputs!$L$15:$V$15,Inputs!$L$16:$V$16),MATCH($C$52,Inputs!$L$14:$V$14,0)) -> 0 | F16: =SUMPRODUCT(Inputs!$J$40:$J$41,Inputs!M$40:M$41)*Inputs!$AJ$23*INDEX(IF($D$52="Mid",Inputs!$L$15:$V$15,Inputs!$L$16:$V$16),MATCH($C$52,Inputs!$L$14:$V$14,0)) -> 0 | G16: =SUMPRODUCT(Inputs!$J$40:$J$41,Inputs!N$40:N$41)*Inputs!$AJ$23*INDEX(IF($D$52="Mid",Inputs!$L$15:$V$15,Inputs!$L$16:$V$16),MATCH($C$52,Inputs!$L$14:$V$14,0)) -> 0 | H16: =SUMPRODUCT(Inputs!$J$40:$J$41,Inputs!O$40:O$41)*Inputs!$AJ$23*INDEX(IF($D$52="Mid",Inputs!$L$15:$V$15,Inputs!$L$16:$V$16),MATCH($C$52,Inputs!$L$14:$V$14,0)) -> 0 | I16: =SUMPRODUCT(Inputs!$J$40:$J$41,Inputs!P$40:P$41)*Inputs!$AJ$23*INDEX(IF($D$52="Mid",Inputs!$L$15:$V$15,Inputs!$L$16:$V$16),MATCH($C$52,Inputs!$L$14:$V$14,0)) -> 0 | J16: =SUMPRODUCT(Inputs!$J$40:$J$41,Inputs!Q$40:Q$41)*Inputs!$AJ$23*INDEX(IF($D$52="Mid",Inputs!$L$15:$V$15,Inputs!$L$16:$V$16),MATCH($C$52,Inputs!$L$14:$V$14,0)) -> 0 | K16: =SUMPRODUCT(Inputs!$J$40:$J$41,Inputs!R$40:R$41)*Inputs!$AJ$23*INDEX(IF($D$52="Mid",Inputs!$L$15:$V$15,Inputs!$L$16:$V$16),MATCH($C$52,Inputs!$L$14:$V$14,0)) -> 0 | L16: =SUMPRODUCT(Inputs!$J$40:$J$41,Inputs!S$40:S$41)*Inputs!$AJ$23*INDEX(IF($D$52="Mid",Inputs!$L$15:$V$15,Inputs!$L$16:$V$16),MATCH($C$52,Inputs!$L$14:$V$14,0)) -> 0 | M16: =SUMPRODUCT(Inputs!$J$40:$J$41,Inputs!T$40:T$41)*Inputs!$AJ$23*INDEX(IF($D$52="Mid",Inputs!$L$15:$V$15,Inputs!$L$16:$V$16),MATCH($C$52,Inputs!$L$14:$V$14,0)) -> 0 | N16: =SUMPRODUCT(Inputs!$J$40:$J$41,Inputs!U$40:U$41)*Inputs!$AJ$23*INDEX(IF($D$52="Mid",Inputs!$L$15:$V$15,Inputs!$L$16:$V$16),MATCH($C$52,Inputs!$L$14:$V$14,0)) -> 0 | O16: =SUMPRODUCT(Inputs!$J$40:$J$41,Inputs!V$40:V$41)*Inputs!$AJ$23*INDEX(IF($D$52="Mid",Inputs!$L$15:$V$15,Inputs!$L$16:$V$16),MATCH($C$52,Inputs!$L$14:$V$14,0)) -> 0 | P16: =SUM(E16:O16) -> 0
B17: =$B$7 -> Labour escalation | C17: =Inputs!$H$4 -> Real $2023 | D17: Dollars | E17: =E16*(Inputs!L$17-1) -> 0 | F17: =F16*(Inputs!M$17-1) -> 0 | G17: =G16*(Inputs!N$17-1) -> 0 | H17: =H16*(Inputs!O$17-1) -> 0 | I17: =I16*(Inputs!P$17-1) -> 0 | J17: =J16*(Inputs!Q$17-1) -> 0 | K17: =K16*(Inputs!R$17-1) -> 0 | L17: =L16*(Inputs!S$17-1) -> 0 | M17: =M16*(Inputs!T$17-1) -> 0 | N17: =N16*(Inputs!U$17-1) -> 0 | O17: =O16*(Inputs!V$17-1) -> 0 | P17: =SUM(E17:O17) -> 0
B18: =$B$8 -> Non labour | C18: =Inputs!$H$4 -> Real $2023 | D18: Dollars | E18: =SUMPRODUCT(Inputs!$I$40:$I$41,Inputs!X$40:X$41)*INDEX(IF($D$53="Mid",Inputs!$L$15:$V$15,Inputs!$L$16:$V$16),MATCH($C$53,Inputs!$L$14:$V$14,0)) -> 0 | F18: =SUMPRODUCT(Inputs!$I$40:$I$41,Inputs!Y$40:Y$41)*INDEX(IF($D$53="Mid",Inputs!$L$15:$V$15,Inputs!$L$16:$V$16),MATCH($C$53,Inputs!$L$14:$V$14,0)) -> 0 | G18: =SUMPRODUCT(Inputs!$I$40:$I$41,Inputs!Z$40:Z$41)*INDEX(IF($D$53="Mid",Inputs!$L$15:$V$15,Inputs!$L$16:$V$16),MATCH($C$53,Inputs!$L$14:$V$14,0)) -> 0 | H18: =SUMPRODUCT(Inputs!$I$40:$I$41,Inputs!AA$40:AA$41)*INDEX(IF($D$53="Mid",Inputs!$L$15:$V$15,Inputs!$L$16:$V$16),MATCH($C$53,Inputs!$L$14:$V$14,0)) -> 0 | I18: =SUMPRODUCT(Inputs!$I$40:$I$41,Inputs!AB$40:AB$41)*INDEX(IF($D$53="Mid",Inputs!$L$15:$V$15,Inputs!$L$16:$V$16),MATCH($C$53,Inputs!$L$14:$V$14,0)) -> 0 | J18: =SUMPRODUCT(Inputs!$I$40:$I$41,Inputs!AC$40:AC$41)*INDEX(IF($D$53="Mid",Inputs!$L$15:$V$15,Inputs!$L$16:$V$16),MATCH($C$53,Inputs!$L$14:$V$14,0)) -> 0 | K18: =SUMPRODUCT(Inputs!$I$40:$I$41,Inputs!AD$40:AD$41)*INDEX(IF($D$53="Mid",Inputs!$L$15:$V$15,Inputs!$L$16:$V$16),MATCH($C$53,Inputs!$L$14:$V$14,0)) -> 0 | L18: =SUMPRODUCT(Inputs!$I$40:$I$41,Inputs!AE$40:AE$41)*INDEX(IF($D$53="Mid",Inputs!$L$15:$V$15,Inputs!$L$16:$V$16),MATCH($C$53,Inputs!$L$14:$V$14,0)) -> 0 | M18: =SUMPRODUCT(Inputs!$I$40:$I$41,Inputs!AF$40:AF$41)*INDEX(IF($D$53="Mid",Inputs!$L$15:$V$15,Inputs!$L$16:$V$16),MATCH($C$53,Inputs!$L$14:$V$14,0)) -> 0 | N18: =SUMPRODUCT(Inputs!$I$40:$I$41,Inputs!AG$40:AG$41)*INDEX(IF($D$53="Mid",Inputs!$L$15:$V$15,Inputs!$L$16:$V$16),MATCH($C$53,Inputs!$L$14:$V$14,0)) -> 0 | O18: =SUMPRODUCT(Inputs!$I$40:$I$41,Inputs!AH$40:AH$41)*INDEX(IF($D$53="Mid",Inputs!$L$15:$V$15,Inputs!$L$16:$V$16),MATCH($C$53,Inputs!$L$14:$V$14,0)) -> 0 | P18: =SUM(E18:O18) -> 0
B19: Sub-Total | C19: =Inputs!$H$4 -> Real $2023 | D19: Dollars | E19: =SUM(E16:E18) -> 0 | F19: 0 | G19: 0 | H19: 0 | I19: 0 | J19: 0 | K19: 0 | L19: 0 | M19: 0 | N19: 0 | O19: 0 | P19: 0
B20: =Inputs!B42 -> Commercial
B21: =$B$6 -> Labour | C21: =Inputs!$H$4 -> Real $2023 | D21: Dollars | E21: =SUMPRODUCT(Inputs!$J$43:$J$44,Inputs!L$43:L$44)*Inputs!$AJ$23*INDEX(IF($D$52="Mid",Inputs!$L$15:$V$15,Inputs!$L$16:$V$16),MATCH($C$52,Inputs!$L$14:$V$14,0)) -> 0 | F21: =SUMPRODUCT(Inputs!$J$43:$J$44,Inputs!M$43:M$44)*Inputs!$AJ$23*INDEX(IF($D$52="Mid",Inputs!$L$15:$V$15,Inputs!$L$16:$V$16),MATCH($C$52,Inputs!$L$14:$V$14,0)) -> 0 | G21: =SUMPRODUCT(Inputs!$J$43:$J$44,Inputs!N$43:N$44)*Inputs!$AJ$23*INDEX(IF($D$52="Mid",Inputs!$L$15:$V$15,Inputs!$L$16:$V$16),MATCH($C$52,Inputs!$L$14:$V$14,0)) -> 0 | H21: =SUMPRODUCT(Inputs!$J$43:$J$44,Inputs!O$43:O$44)*Inputs!$AJ$23*INDEX(IF($D$52="Mid",Inputs!$L$15:$V$15,Inputs!$L$16:$V$16),MATCH($C$52,Inputs!$L$14:$V$14,0)) -> 0 | I21: =SUMPRODUCT(Inputs!$J$43:$J$44,Inputs!P$43:P$44)*Inputs!$AJ$23*INDEX(IF($D$52="Mid",Inputs!$L$15:$V$15,Inputs!$L$16:$V$16),MATCH($C$52,Inputs!$L$14:$V$14,0)) -> 0 | J21: =SUMPRODUCT(Inputs!$J$43:$J$44,Inputs!Q$43:Q$44)*Inputs!$AJ$23*INDEX(IF($D$52="Mid",Inputs!$L$15:$V$15,Inputs!$L$16:$V$16),MATCH($C$52,Inputs!$L$14:$V$14,0)) -> 0 | K21: =SUMPRODUCT(Inputs!$J$43:$J$44,Inputs!R$43:R$44)*Inputs!$AJ$23*INDEX(IF($D$52="Mid",Inputs!$L$15:$V$15,Inputs!$L$16:$V$16),MATCH($C$52,Inputs!$L$14:$V$14,0)) -> 0 | L21: =SUMPRODUCT(Inputs!$J$43:$J$44,Inputs!S$43:S$44)*Inputs!$AJ$23*INDEX(IF($D$52="Mid",Inputs!$L$15:$V$15,Inputs!$L$16:$V$16),MATCH($C$52,Inputs!$L$14:$V$14,0)) -> 0 | M21: =SUMPRODUCT(Inputs!$J$43:$J$44,Inputs!T$43:T$44)*Inputs!$AJ$23*INDEX(IF($D$52="Mid",Inputs!$L$15:$V$15,Inputs!$L$16:$V$16),MATCH($C$52,Inputs!$L$14:$V$14,0)) -> 0 | N21: =SUMPRODUCT(Inputs!$J$43:$J$44,Inputs!U$43:U$44)*Inputs!$AJ$23*INDEX(IF($D$52="Mid",Inputs!$L$15:$V$15,Inputs!$L$16:$V$16),MATCH($C$52,Inputs!$L$14:$V$14,0)) -> 0 | O21: =SUMPRODUCT(Inputs!$J$43:$J$44,Inputs!V$43:V$44)*Inputs!$AJ$23*INDEX(IF($D$52="Mid",Inputs!$L$15:$V$15,Inputs!$L$16:$V$16),MATCH($C$52,Inputs!$L$14:$V$14,0)) -> 0 | P21: =SUM(E21:O21) -> 0
B22: =$B$7 -> Labour escalation | C22: =Inputs!$H$4 -> Real $2023 | D22: Dollars | E22: =E21*(Inputs!L$17-1) -> 0 | F22: =F21*(Inputs!M$17-1) -> 0 | G22: =G21*(Inputs!N$17-1) -> 0 | H22: =H21*(Inputs!O$17-1) -> 0 | I22: =I21*(Inputs!P$17-1) -> 0 | J22: =J21*(Inputs!Q$17-1) -> 0 | K22: =K21*(Inputs!R$17-1) -> 0 | L22: =L21*(Inputs!S$17-1) -> 0 | M22: =M21*(Inputs!T$17-1) -> 0 | N22: =N21*(Inputs!U$17-1) -> 0 | O22: =O21*(Inputs!V$17-1) -> 0 | P22: =SUM(E22:O22) -> 0
B23: =$B$8 -> Non labour | C23: =Inputs!$H$4 -> Real $2023 | D23: Dollars | E23: =SUMPRODUCT(Inputs!$I$43:$I$44,Inputs!X$43:X$44)*INDEX(IF($D$53="Mid",Inputs!$L$15:$V$15,Inputs!$L$16:$V$16),MATCH($C$53,Inputs!$L$14:$V$14,0)) -> 0 | F23: =SUMPRODUCT(Inputs!$I$43:$I$44,Inputs!Y$43:Y$44)*INDEX(IF($D$53="Mid",Inputs!$L$15:$V$15,Inputs!$L$16:$V$16),MATCH($C$53,Inputs!$L$14:$V$14,0)) -> 0 | G23: =SUMPRODUCT(Inputs!$I$43:$I$44,Inputs!Z$43:Z$44)*INDEX(IF($D$53="Mid",Inputs!$L$15:$V$15,Inputs!$L$16:$V$16),MATCH($C$53,Inputs!$L$14:$V$14,0)) -> 0 | H23: =SUMPRODUCT(Inputs!$I$43:$I$44,Inputs!AA$43:AA$44)*INDEX(IF($D$53="Mid",Inputs!$L$15:$V$15,Inputs!$L$16:$V$16),MATCH($C$53,Inputs!$L$14:$V$14,0)) -> 0 | I23: =SUMPRODUCT(Inputs!$I$43:$I$44,Inputs!AB$43:AB$44)*INDEX(IF($D$53="Mid",Inputs!$L$15:$V$15,Inputs!$L$16:$V$16),MATCH($C$53,Inputs!$L$14:$V$14,0)) -> 0 | J23: =SUMPRODUCT(Inputs!$I$43:$I$44,Inputs!AC$43:AC$44)*INDEX(IF($D$53="Mid",Inputs!$L$15:$V$15,Inputs!$L$16:$V$16),MATCH($C$53,Inputs!$L$14:$V$14,0)) -> 0 | K23: =SUMPRODUCT(Inputs!$I$43:$I$44,Inputs!AD$43:AD$44)*INDEX(IF($D$53="Mid",Inputs!$L$15:$V$15,Inputs!$L$16:$V$16),MATCH($C$53,Inputs!$L$14:$V$14,0)) -> 0 | L23: =SUMPRODUCT(Inputs!$I$43:$I$44,Inputs!AE$43:AE$44)*INDEX(IF($D$53="Mid",Inputs!$L$15:$V$15,Inputs!$L$16:$V$16),MATCH($C$53,Inputs!$L$14:$V$14,0)) -> 0 | M23: =SUMPRODUCT(Inputs!$I$43:$I$44,Inputs!AF$43:AF$44)*INDEX(IF($D$53="Mid",Inputs!$L$15:$V$15,Inputs!$L$16:$V$16),MATCH($C$53,Inputs!$L$14:$V$14,0)) -> 0 | N23: =SUMPRODUCT(Inputs!$I$43:$I$44,Inputs!AG$43:AG$44)*INDEX(IF($D$53="Mid",Inputs!$L$15:$V$15,Inputs!$L$16:$V$16),MATCH($C$53,Inputs!$L$14:$V$14,0)) -> 0 | O23: =SUMPRODUCT(Inputs!$I$43:$I$44,Inputs!AH$43:AH$44)*INDEX(IF($D$53="Mid",Inputs!$L$15:$V$15,Inputs!$L$16:$V$16),MATCH($C$53,Inputs!$L$14:$V$14,0)) -> 0 | P23: =SUM(E23:O23) -> 0
B24: Sub-Total | C24: =Inputs!$H$4 -> Real $2023 | D24: Dollars | E24: =SUM(E21:E23) -> 0 | F24: 0 | G24: 0 | H24: 0 | I24: 0 | J24: 0 | K24: 0 | L24: 0 | M24: 0 | N24: 0 | O24: 0 | P24: 0
B25: =Inputs!B45 -> Delivery
B26: =$B$6 -> Labour | C26: =Inputs!$H$4 -> Real $2023 | D26: Dollars | E26: =SUMPRODUCT(Inputs!$J$46:$J$47,Inputs!L$46:L$47)*Inputs!$AJ$23*INDEX(IF($D$52="Mid",Inputs!$L$15:$V$15,Inputs!$L$16:$V$16),MATCH($C$52,Inputs!$L$14:$V$14,0)) -> 0 | F26: =SUMPRODUCT(Inputs!$J$46:$J$47,Inputs!M$46:M$47)*Inputs!$AJ$23*INDEX(IF($D$52="Mid",Inputs!$L$15:$V$15,Inputs!$L$16:$V$16),MATCH($C$52,Inputs!$L$14:$V$14,0)) -> 0 | G26: =SUMPRODUCT(Inputs!$J$46:$J$47,Inputs!N$46:N$47)*Inputs!$AJ$23*INDEX(IF($D$52="Mid",Inputs!$L$15:$V$15,Inputs!$L$16:$V$16),MATCH($C$52,Inputs!$L$14:$V$14,0)) -> 0 | H26: =SUMPRODUCT(Inputs!$J$46:$J$47,Inputs!O$46:O$47)*Inputs!$AJ$23*INDEX(IF($D$52="Mid",Inputs!$L$15:$V$15,Inputs!$L$16:$V$16),MATCH($C$52,Inputs!$L$14:$V$14,0)) -> 0 | I26: =SUMPRODUCT(Inputs!$J$46:$J$47,Inputs!P$46:P$47)*Inputs!$AJ$23*INDEX(IF($D$52="Mid",Inputs!$L$15:$V$15,Inputs!$L$16:$V$16),MATCH($C$52,Inputs!$L$14:$V$14,0)) -> 0 | J26: =SUMPRODUCT(Inputs!$J$46:$J$47,Inputs!Q$46:Q$47)*Inputs!$AJ$23*INDEX(IF($D$52="Mid",Inputs!$L$15:$V$15,Inputs!$L$16:$V$16),MATCH($C$52,Inputs!$L$14:$V$14,0)) -> 0 | K26: =SUMPRODUCT(Inputs!$J$46:$J$47,Inputs!R$46:R$47)*Inputs!$AJ$23*INDEX(IF($D$52="Mid",Inputs!$L$15:$V$15,Inputs!$L$16:$V$16),MATCH($C$52,Inputs!$L$14:$V$14,0)) -> 0 | L26: =SUMPRODUCT(Inputs!$J$46:$J$47,Inputs!S$46:S$47)*Inputs!$AJ$23*INDEX(IF($D$52="Mid",Inputs!$L$15:$V$15,Inputs!$L$16:$V$16),MATCH($C$52,Inputs!$L$14:$V$14,0)) -> 0 | M26: =SUMPRODUCT(Inputs!$J$46:$J$47,Inputs!T$46:T$47)*Inputs!$AJ$23*INDEX(IF($D$52="Mid",Inputs!$L$15:$V$15,Inputs!$L$16:$V$16),MATCH($C$52,Inputs!$L$14:$V$14,0)) -> 0 | N26: =SUMPRODUCT(Inputs!$J$46:$J$47,Inputs!U$46:U$47)*Inputs!$AJ$23*INDEX(IF($D$52="Mid",Inputs!$L$15:$V$15,Inputs!$L$16:$V$16),MATCH($C$52,Inputs!$L$14:$V$14,0)) -> 0 | O26: =SUMPRODUCT(Inputs!$J$46:$J$47,Inputs!V$46:V$47)*Inputs!$AJ$23*INDEX(IF($D$52="Mid",Inputs!$L$15:$V$15,Inputs!$L$16:$V$16),MATCH($C$52,Inputs!$L$14:$V$14,0)) -> 0 | P26: =SUM(E26:O26) -> 0
B27: =$B$7 -> Labour escalation | C27: =Inputs!$H$4 -> Real $2023 | D27: Dollars | E27: =E26*(Inputs!L$17-1) -> 0 | F27: =F26*(Inputs!M$17-1) -> 0 | G27: =G26*(Inputs!N$17-1) -> 0 | H27: =H26*(Inputs!O$17-1) -> 0 | I27: =I26*(Inputs!P$17-1) -> 0 | J27: =J26*(Inputs!Q$17-1) -> 0 | K27: =K26*(Inputs!R$17-1) -> 0 | L27: =L26*(Inputs!S$17-1) -> 0 | M27: =M26*(Inputs!T$17-1) -> 0 | N27: =N26*(Inputs!U$17-1) -> 0 | O27: =O26*(Inputs!V$17-1) -> 0 | P27: =SUM(E27:O27) -> 0
B28: =$B$8 -> Non labour | C28: =Inputs!$H$4 -> Real $2023 | D28: Dollars | E28: =SUMPRODUCT(Inputs!$I$46:$I$47,Inputs!X$46:X$47)*INDEX(IF($D$53="Mid",Inputs!$L$15:$V$15,Inputs!$L$16:$V$16),MATCH($C$53,Inputs!$L$14:$V$14,0)) -> 0 | F28: =SUMPRODUCT(Inputs!$I$46:$I$47,Inputs!Y$46:Y$47)*INDEX(IF($D$53="Mid",Inputs!$L$15:$V$15,Inputs!$L$16:$V$16),MATCH($C$53,Inputs!$L$14:$V$14,0)) -> 0 | G28: =SUMPRODUCT(Inputs!$I$46:$I$47,Inputs!Z$46:Z$47)*INDEX(IF($D$53="Mid",Inputs!$L$15:$V$15,Inputs!$L$16:$V$16),MATCH($C$53,Inputs!$L$14:$V$14,0)) -> 0 | H28: =SUMPRODUCT(Inputs!$I$46:$I$47,Inputs!AA$46:AA$47)*INDEX(IF($D$53="Mid",Inputs!$L$15:$V$15,Inputs!$L$16:$V$16),MATCH($C$53,Inputs!$L$14:$V$14,0)) -> 0 | I28: =SUMPRODUCT(Inputs!$I$46:$I$47,Inputs!AB$46:AB$47)*INDEX(IF($D$53="Mid",Inputs!$L$15:$V$15,Inputs!$L$16:$V$16),MATCH($C$53,Inputs!$L$14:$V$14,0)) -> 0 | J28: =SUMPRODUCT(Inputs!$I$46:$I$47,Inputs!AC$46:AC$47)*INDEX(IF($D$53="Mid",Inputs!$L$15:$V$15,Inputs!$L$16:$V$16),MATCH($C$53,Inputs!$L$14:$V$14,0)) -> 0 | K28: =SUMPRODUCT(Inputs!$I$46:$I$47,Inputs!AD$46:AD$47)*INDEX(IF($D$53="Mid",Inputs!$L$15:$V$15,Inputs!$L$16:$V$16),MATCH($C$53,Inputs!$L$14:$V$14,0)) -> 0 | L28: =SUMPRODUCT(Inputs!$I$46:$I$47,Inputs!AE$46:AE$47)*INDEX(IF($D$53="Mid",Inputs!$L$15:$V$15,Inputs!$L$16:$V$16),MATCH($C$53,Inputs!$L$14:$V$14,0)) -> 0 | M28: =SUMPRODUCT(Inputs!$I$46:$I$47,Inputs!AF$46:AF$47)*INDEX(IF($D$53="Mid",Inputs!$L$15:$V$15,Inputs!$L$16:$V$16),MATCH($C$53,Inputs!$L$14:$V$14,0)) -> 0 | N28: =SUMPRODUCT(Inputs!$I$46:$I$47,Inputs!AG$46:AG$47)*INDEX(IF($D$53="Mid",Inputs!$L$15:$V$15,Inputs!$L$16:$V$16),MATCH($C$53,Inputs!$L$14:$V$14,0)) -> 0 | O28: =SUMPRODUCT(Inputs!$I$46:$I$47,Inputs!AH$46:AH$47)*INDEX(IF($D$53="Mid",Inputs!$L$15:$V$15,Inputs!$L$16:$V$16),MATCH($C$53,Inputs!$L$14:$V$14,0)) -> 0 | P28: =SUM(E28:O28) -> 0
B29: Sub-Total | C29: =Inputs!$H$4 -> Real $2023 | D29: Dollars | E29: =SUM(E26:E28) -> 0 | F29: 0 | G29: 0 | H29: 0 | I29: 0 | J29: 0 | K29: 0 | L29: 0 | M29: 0 | N29: 0 | O29: 0 | P29: 0
B30: =Inputs!B48 -> Finance & Audit
B31: Labour | C31: =Inputs!$H$4 -> Real $2023 | D31: Dollars | E31: =SUMPRODUCT(Inputs!$J$49:$J$50,Inputs!L$49:L$50)*Inputs!$AJ$23*INDEX(IF($D$52="Mid",Inputs!$L$15:$V$15,Inputs!$L$16:$V$16),MATCH($C$52,Inputs!$L$14:$V$14,0)) -> 0 | F31: =SUMPRODUCT(Inputs!$J$49:$J$50,Inputs!M$49:M$50)*Inputs!$AJ$23*INDEX(IF($D$52="Mid",Inputs!$L$15:$V$15,Inputs!$L$16:$V$16),MATCH($C$52,Inputs!$L$14:$V$14,0)) -> 0 | G31: =SUMPRODUCT(Inputs!$J$49:$J$50,Inputs!N$49:N$50)*Inputs!$AJ$23*INDEX(IF($D$52="Mid",Inputs!$L$15:$V$15,Inputs!$L$16:$V$16),MATCH($C$52,Inputs!$L$14:$V$14,0)) -> 0 | H31: =SUMPRODUCT(Inputs!$J$49:$J$50,Inputs!O$49:O$50)*Inputs!$AJ$23*INDEX(IF($D$52="Mid",Inputs!$L$15:$V$15,Inputs!$L$16:$V$16),MATCH($C$52,Inputs!$L$14:$V$14,0)) -> 0 | I31: =SUMPRODUCT(Inputs!$J$49:$J$50,Inputs!P$49:P$50)*Inputs!$AJ$23*INDEX(IF($D$52="Mid",Inputs!$L$15:$V$15,Inputs!$L$16:$V$16),MATCH($C$52,Inputs!$L$14:$V$14,0)) -> 0 | J31: =SUMPRODUCT(Inputs!$J$49:$J$50,Inputs!Q$49:Q$50)*Inputs!$AJ$23*INDEX(IF($D$52="Mid",Inputs!$L$15:$V$15,Inputs!$L$16:$V$16),MATCH($C$52,Inputs!$L$14:$V$14,0)) -> 0 | K31: =SUMPRODUCT(Inputs!$J$49:$J$50,Inputs!R$49:R$50)*Inputs!$AJ$23*INDEX(IF($D$52="Mid",Inputs!$L$15:$V$15,Inputs!$L$16:$V$16),MATCH($C$52,Inputs!$L$14:$V$14,0)) -> 0 | L31: =SUMPRODUCT(Inputs!$J$49:$J$50,Inputs!S$49:S$50)*Inputs!$AJ$23*INDEX(IF($D$52="Mid",Inputs!$L$15:$V$15,Inputs!$L$16:$V$16),MATCH($C$52,Inputs!$L$14:$V$14,0)) -> 0 | M31: =SUMPRODUCT(Inputs!$J$49:$J$50,Inputs!T$49:T$50)*Inputs!$AJ$23*INDEX(IF($D$52="Mid",Inputs!$L$15:$V$15,Inputs!$L$16:$V$16),MATCH($C$52,Inputs!$L$14:$V$14,0)) -> 0 | N31: =SUMPRODUCT(Inputs!$J$49:$J$50,Inputs!U$49:U$50)*Inputs!$AJ$23*INDEX(IF($D$52="Mid",Inputs!$L$15:$V$15,Inputs!$L$16:$V$16),MATCH($C$52,Inputs!$L$14:$V$14,0)) -> 0 | O31: =SUMPRODUCT(Inputs!$J$49:$J$50,Inputs!V$49:V$50)*Inputs!$AJ$23*INDEX(IF($D$52="Mid",Inputs!$L$15:$V$15,Inputs!$L$16:$V$16),MATCH($C$52,Inputs!$L$14:$V$14,0)) -> 0 | P31: =SUM(E31:O31) -> 0
B32: Labour escalation | C32: =Inputs!$H$4 -> Real $2023 | D32: Dollars | E32: =E31*(Inputs!L$17-1) -> 0 | F32: =F31*(Inputs!M$17-1) -> 0 | G32: =G31*(Inputs!N$17-1) -> 0 | H32: =H31*(Inputs!O$17-1) -> 0 | I32: =I31*(Inputs!P$17-1) -> 0 | J32: =J31*(Inputs!Q$17-1) -> 0 | K32: =K31*(Inputs!R$17-1) -> 0 | L32: =L31*(Inputs!S$17-1) -> 0 | M32: =M31*(Inputs!T$17-1) -> 0 | N32: =N31*(Inputs!U$17-1) -> 0 | O32: =O31*(Inputs!V$17-1) -> 0 | P32: =SUM(E32:O32) -> 0
B33: =$B$8 -> Non labour | C33: =Inputs!$H$4 -> Real $2023 | D33: Dollars | E33: =SUMPRODUCT(Inputs!$I$49:$I$50,Inputs!X$49:X$50)*INDEX(IF($D$53="Mid",Inputs!$L$15:$V$15,Inputs!$L$16:$V$16),MATCH($C$53,Inputs!$L$14:$V$14,0)) -> 0 | F33: =SUMPRODUCT(Inputs!$I$49:$I$50,Inputs!Y$49:Y$50)*INDEX(IF($D$53="Mid",Inputs!$L$15:$V$15,Inputs!$L$16:$V$16),MATCH($C$53,Inputs!$L$14:$V$14,0)) -> 0 | G33: =SUMPRODUCT(Inputs!$I$49:$I$50,Inputs!Z$49:Z$50)*INDEX(IF($D$53="Mid",Inputs!$L$15:$V$15,Inputs!$L$16:$V$16),MATCH($C$53,Inputs!$L$14:$V$14,0)) -> 0 | H33: =SUMPRODUCT(Inputs!$I$49:$I$50,Inputs!AA$49:AA$50)*INDEX(IF($D$53="Mid",Inputs!$L$15:$V$15,Inputs!$L$16:$V$16),MATCH($C$53,Inputs!$L$14:$V$14,0)) -> 0 | I33: =SUMPRODUCT(Inputs!$I$49:$I$50,Inputs!AB$49:AB$50)*INDEX(IF($D$53="Mid",Inputs!$L$15:$V$15,Inputs!$L$16:$V$16),MATCH($C$53,Inputs!$L$14:$V$14,0)) -> 0 | J33: =SUMPRODUCT(Inputs!$I$49:$I$50,Inputs!AC$49:AC$50)*INDEX(IF($D$53="Mid",Inputs!$L$15:$V$15,Inputs!$L$16:$V$16),MATCH($C$53,Inputs!$L$14:$V$14,0)) -> 0 | K33: =SUMPRODUCT(Inputs!$I$49:$I$50,Inputs!AD$49:AD$50)*INDEX(IF($D$53="Mid",Inputs!$L$15:$V$15,Inputs!$L$16:$V$16),MATCH($C$53,Inputs!$L$14:$V$14,0)) -> 0 | L33: =SUMPRODUCT(Inputs!$I$49:$I$50,Inputs!AE$49:AE$50)*INDEX(IF($D$53="Mid",Inputs!$L$15:$V$15,Inputs!$L$16:$V$16),MATCH($C$53,Inputs!$L$14:$V$14,0)) -> 0 | M33: =SUMPRODUCT(Inputs!$I$49:$I$50,Inputs!AF$49:AF$50)*INDEX(IF($D$53="Mid",Inputs!$L$15:$V$15,Inputs!$L$16:$V$16),MATCH($C$53,Inputs!$L$14:$V$14,0)) -> 0 | N33: =SUMPRODUCT(Inputs!$I$49:$I$50,Inputs!AG$49:AG$50)*INDEX(IF($D$53="Mid",Inputs!$L$15:$V$15,Inputs!$L$16:$V$16),MATCH($C$53,Inputs!$L$14:$V$14,0)) -> 0 | O33: =SUMPRODUCT(Inputs!$I$49:$I$50,Inputs!AH$49:AH$50)*INDEX(IF($D$53="Mid",Inputs!$L$15:$V$15,Inputs!$L$16:$V$16),MATCH($C$53,Inputs!$L$14:$V$14,0)) -> 0 | P33: =SUM(E33:O33) -> 0
B34: Sub-Total | C34: =Inputs!$H$4 -> Real $2023 | D34: Dollars | E34: =SUM(E31:E33) -> 0 | F34: 0 | G34: 0 | H34: 0 | I34: 0 | J34: 0 | K34: =SUM(K31:K33) -> 0 | L34: =SUM(L31:L33) -> 0 | M34: =SUM(M31:M33) -> 0 | N34: =SUM(N31:N33) -> 0 | O34: 0 | P34: =SUM(E34:O34) -> 0
B35: =Inputs!B51 -> Regulatory submissions
B36: Labour - Regulatory Submissions | C36: =Inputs!$H$4 -> Real $2023 | D36: Dollars | E36: =SUMPRODUCT(Inputs!$J$52:$J$53,Inputs!L$52:L$53)*Inputs!$AJ$23*INDEX(IF($D$52="Mid",Inputs!$L$15:$V$15,Inputs!$L$16:$V$16),MATCH($C$52,Inputs!$L$14:$V$14,0)) -> 0 | F36: =SUMPRODUCT(Inputs!$J$52:$J$53,Inputs!M$52:M$53)*Inputs!$AJ$23*INDEX(IF($D$52="Mid",Inputs!$L$15:$V$15,Inputs!$L$16:$V$16),MATCH($C$52,Inputs!$L$14:$V$14,0)) -> 0 | G36: =SUMPRODUCT(Inputs!$J$52:$J$53,Inputs!N$52:N$53)*Inputs!$AJ$23*INDEX(IF($D$52="Mid",Inputs!$L$15:$V$15,Inputs!$L$16:$V$16),MATCH($C$52,Inputs!$L$14:$V$14,0)) -> 0 | H36: =SUMPRODUCT(Inputs!$J$52:$J$53,Inputs!O$52:O$53)*Inputs!$AJ$23*INDEX(IF($D$52="Mid",Inputs!$L$15:$V$15,Inputs!$L$16:$V$16),MATCH($C$52,Inputs!$L$14:$V$14,0)) -> 0 | I36: =SUMPRODUCT(Inputs!$J$52:$J$53,Inputs!P$52:P$53)*Inputs!$AJ$23*INDEX(IF($D$52="Mid",Inputs!$L$15:$V$15,Inputs!$L$16:$V$16),MATCH($C$52,Inputs!$L$14:$V$14,0)) -> 0 | J36: =SUMPRODUCT(Inputs!$J$52:$J$53,Inputs!Q$52:Q$53)*Inputs!$AJ$23*INDEX(IF($D$52="Mid",Inputs!$L$15:$V$15,Inputs!$L$16:$V$16),MATCH($C$52,Inputs!$L$14:$V$14,0)) -> 0 | K36: =SUMPRODUCT(Inputs!$J$52:$J$53,Inputs!R$52:R$53)*Inputs!$AJ$23*INDEX(IF($D$52="Mid",Inputs!$L$15:$V$15,Inputs!$L$16:$V$16),MATCH($C$52,Inputs!$L$14:$V$14,0)) -> 0 | L36: =SUMPRODUCT(Inputs!$J$52:$J$53,Inputs!S$52:S$53)*Inputs!$AJ$23*INDEX(IF($D$52="Mid",Inputs!$L$15:$V$15,Inputs!$L$16:$V$16),MATCH($C$52,Inputs!$L$14:$V$14,0)) -> 0 | M36: =SUMPRODUCT(Inputs!$J$52:$J$53,Inputs!T$52:T$53)*Inputs!$AJ$23*INDEX(IF($D$52="Mid",Inputs!$L$15:$V$15,Inputs!$L$16:$V$16),MATCH($C$52,Inputs!$L$14:$V$14,0)) -> 0 | N36: =SUMPRODUCT(Inputs!$J$52:$J$53,Inputs!U$52:U$53)*Inputs!$AJ$23*INDEX(IF($D$52="Mid",Inputs!$L$15:$V$15,Inputs!$L$16:$V$16),MATCH($C$52,Inputs!$L$14:$V$14,0)) -> 0 | O36: =SUMPRODUCT(Inputs!$J$52:$J$53,Inputs!V$52:V$53)*Inputs!$AJ$23*INDEX(IF($D$52="Mid",Inputs!$L$15:$V$15,Inputs!$L$16:$V$16),MATCH($C$52,Inputs!$L$14:$V$14,0)) -> 0 | P36: =SUM(E36:O36) -> 0
B37: Labour escalation | C37: =Inputs!$H$4 -> Real $2023 | D37: Dollars | E37: =E36*(Inputs!L$17-1) -> 0 | F37: =F36*(Inputs!M$17-1) -> 0 | G37: =G36*(Inputs!N$17-1) -> 0 | H37: =H36*(Inputs!O$17-1) -> 0 | I37: =I36*(Inputs!P$17-1) -> 0 | J37: =J36*(Inputs!Q$17-1) -> 0 | K37: =K36*(Inputs!R$17-1) -> 0 | L37: =L36*(Inputs!S$17-1) -> 0 | M37: =M36*(Inputs!T$17-1) -> 0 | N37: =N36*(Inputs!U$17-1) -> 0 | O37: =O36*(Inputs!V$17-1) -> 0 | P37: =SUM(E37:O37) -> 0
B38: =$B$8 -> Non labour | C38: =Inputs!$H$4 -> Real $2023 | D38: Dollars | E38: =SUMPRODUCT(Inputs!$I$52:$I$53,Inputs!X$52:X$53)*INDEX(IF($D$53="Mid",Inputs!$L$15:$V$15,Inputs!$L$16:$V$16),MATCH($C$53,Inputs!$L$14:$V$14,0)) -> 0 | F38: =SUMPRODUCT(Inputs!$I$52:$I$53,Inputs!Y$52:Y$53)*INDEX(IF($D$53="Mid",Inputs!$L$15:$V$15,Inputs!$L$16:$V$16),MATCH($C$53,Inputs!$L$14:$V$14,0)) -> 0 | G38: =SUMPRODUCT(Inputs!$I$52:$I$53,Inputs!Z$52:Z$53)*INDEX(IF($D$53="Mid",Inputs!$L$15:$V$15,Inputs!$L$16:$V$16),MATCH($C$53,Inputs!$L$14:$V$14,0)) -> 0 | H38: =SUMPRODUCT(Inputs!$I$52:$I$53,Inputs!AA$52:AA$53)*INDEX(IF($D$53="Mid",Inputs!$L$15:$V$15,Inputs!$L$16:$V$16),MATCH($C$53,Inputs!$L$14:$V$14,0)) -> 0 | I38: =SUMPRODUCT(Inputs!$I$52:$I$53,Inputs!AB$52:AB$53)*INDEX(IF($D$53="Mid",Inputs!$L$15:$V$15,Inputs!$L$16:$V$16),MATCH($C$53,Inputs!$L$14:$V$14,0)) -> 0 | J38: =SUMPRODUCT(Inputs!$I$52:$I$53,Inputs!AC$52:AC$53)*INDEX(IF($D$53="Mid",Inputs!$L$15:$V$15,Inputs!$L$16:$V$16),MATCH($C$53,Inputs!$L$14:$V$14,0)) -> 0 | K38: =SUMPRODUCT(Inputs!$I$52:$I$53,Inputs!AD$52:AD$53)*INDEX(IF($D$53="Mid",Inputs!$L$15:$V$15,Inputs!$L$16:$V$16),MATCH($C$53,Inputs!$L$14:$V$14,0)) -> 0 | L38: =SUMPRODUCT(Inputs!$I$52:$I$53,Inputs!AE$52:AE$53)*INDEX(IF($D$53="Mid",Inputs!$L$15:$V$15,Inputs!$L$16:$V$16),MATCH($C$53,Inputs!$L$14:$V$14,0)) -> 0 | M38: =SUMPRODUCT(Inputs!$I$52:$I$53,Inputs!AF$52:AF$53)*INDEX(IF($D$53="Mid",Inputs!$L$15:$V$15,Inputs!$L$16:$V$16),MATCH($C$53,Inputs!$L$14:$V$14,0)) -> 0 | N38: =SUMPRODUCT(Inputs!$I$52:$I$53,Inputs!AG$52:AG$53)*INDEX(IF($D$53="Mid",Inputs!$L$15:$V$15,Inputs!$L$16:$V$16),MATCH($C$53,Inputs!$L$14:$V$14,0)) -> 0 | O38: =SUMPRODUCT(Inputs!$I$52:$I$53,Inputs!AH$52:AH$53)*INDEX(IF($D$53="Mid",Inputs!$L$15:$V$15,Inputs!$L$16:$V$16),MATCH($C$53,Inputs!$L$14:$V$14,0)) -> 0 | P38: =SUM(E38:O38) -> 0
B39: Sub-Total | C39: =Inputs!$H$4 -> Real $2023 | D39: Dollars | E39: =SUM(E36:E38) -> 0 | F39: 0 | G39: 0 | H39: 0 | I39: 0 | J39: 0 | K39: =SUM(K36:K38) -> 0 | L39: =SUM(L36:L38) -> 0 | M39: =SUM(M36:M38) -> 0 | N39: =SUM(N36:N38) -> 0 | O39: 0 | P39: =SUM(E39:O39) -> 0
B40: Total
B41: =$B$6 -> Labour | C41: =Inputs!$H$4 -> Real $2023 | D41: Dollars | E41: =E6+E11+E16+E21+E26+E31+E36 -> 0 | F41: 0 | G41: 0 | H41: 0 | I41: 0 | J41: 491787.8891 | K41: =K6+K11+K16+K21+K26+K31+K36 -> 1114802.036 | L41: 2523651.77 | M41: 2832163.164 | N41: 3449186.101 | O41: 3449186.101 | P41: =SUM(E41:O41) -> 13860777.06
B42: =$B$7 -> Labour escalation | C42: =Inputs!$H$4 -> Real $2023 | D42: Dollars | E42: 0 | F42: 0 | G42: 0 | H42: 0 | I42: 0 | J42: 1479.993033 | K42: 11375.98747 | L42: 44040.70813 | M42: 70095.63717 | N42: 110721.9471 | O42: 136258.9111 | P42: =P7+P12+P17+P22+P27+P32+P37 -> 373973.1839
B43: =$B$8 -> Non labour | C43: =Inputs!$H$4 -> Real $2023 | D43: Dollars | E43: =E8+E13+E18+E23+E28+E33+E38 -> 0 | F43: =F8+F13+F18+F23+F28+F33+F38 -> 0 | G43: 0 | H43: 0 | I43: 0 | J43: 248009.4113 | K43: 1624551.005 | L43: 3621647.107 | M43: 4145556.108 | N43: 4166354.305 | O43: 4166354.305 | P43: =SUM(E43:O43) -> 17972472.24
B44: Total costs (excluding debt raising costs) | C44: =Inputs!$H$4 -> Real $2023 | D44: Dollars | E44: =SUM(E41:E43) -> 0 | F44: 0 | G44: 0 | H44: 0 | I44: 0 | J44: 741277.2935 | K44: 2750729.029 | L44: 6189339.585 | M44: 7047814.908 | N44: 7726262.353 | O44: 7751799.317 | P44: 32207222.49
B46: Debt raising costs | C46: =Inputs!$H$4 -> Real $2023 | D46: Dollars | E46: =Inputs!L$61*INDEX(IF(Inputs!$G$61="Mid",Inputs!$L$15:$V$15,Inputs!$L$16:$V$16),MATCH(Inputs!$F$61,Inputs!$L$14:$V$14,0)) -> 0 | F46: =Inputs!M$61*INDEX(IF(Inputs!$G$61="Mid",Inputs!$L$15:$V$15,Inputs!$L$16:$V$16),MATCH(Inputs!$F$61,Inputs!$L$14:$V$14,0)) -> 0 | G46: =Inputs!N$61*INDEX(IF(Inputs!$G$61="Mid",Inputs!$L$15:$V$15,Inputs!$L$16:$V$16),MATCH(Inputs!$F$61,Inputs!$L$14:$V$14,0)) -> 2312.093906 | H46: =Inputs!O$61*INDEX(IF(Inputs!$G$61="Mid",Inputs!$L$15:$V$15,Inputs!$L$16:$V$16),MATCH(Inputs!$F$61,Inputs!$L$14:$V$14,0)) -> 4178.79544 | I46: =Inputs!P$61*INDEX(IF(Inputs!$G$61="Mid",Inputs!$L$15:$V$15,Inputs!$L$16:$V$16),MATCH(Inputs!$F$61,Inputs!$L$14:$V$14,0)) -> 4643.31147 | J46: =Inputs!Q$61*INDEX(IF(Inputs!$G$61="Mid",Inputs!$L$15:$V$15,Inputs!$L$16:$V$16),MATCH(Inputs!$F$61,Inputs!$L$14:$V$14,0)) -> 14265.43275 | K46: =Inputs!R$61*INDEX(IF(Inputs!$G$61="Mid",Inputs!$L$15:$V$15,Inputs!$L$16:$V$16),MATCH(Inputs!$F$61,Inputs!$L$14:$V$14,0)) -> 0 | L46: =Inputs!S$61*INDEX(IF(Inputs!$G$61="Mid",Inputs!$L$15:$V$15,Inputs!$L$16:$V$16),MATCH(Inputs!$F$61,Inputs!$L$14:$V$14,0)) -> 0 | M46: =Inputs!T$61*INDEX(IF(Inputs!$G$61="Mid",Inputs!$L$15:$V$15,Inputs!$L$16:$V$16),MATCH(Inputs!$F$61,Inputs!$L$14:$V$14,0)) -> 0 | N46: =Inputs!U$61*INDEX(IF(Inputs!$G$61="Mid",Inputs!$L$15:$V$15,Inputs!$L$16:$V$16),MATCH(Inputs!$F$61,Inputs!$L$14:$V$14,0)) -> 0 | O46: =Inputs!V$61*INDEX(IF(Inputs!$G$61="Mid",Inputs!$L$15:$V$15,Inputs!$L$16:$V$16),MATCH(Inputs!$F$61,Inputs!$L$14:$V$14,0)) -> 0 | P46: =SUM(E46:O46) -> 25399.63356
B48: Total costs (including debt raising costs) | C48: =Inputs!$H$4 -> Real $2023 | D48: Dollars | E48: =E44+E46 -> 0 | F48: 0 | G48: 2312.093906 | H48: 4178.79544 | I48: 4643.31147 | J48: 755542.7262 | K48: =K44+K46 -> 2750729.029 | L48: =L44+L46 -> 6189339.585 | M48: =M44+M46 -> 7047814.908 | N48: =N44+N46 -> 7726262.353 | O48: 7751799.317 | P48: 32232622.12
A50: =IF(SUM(E50:O50)=0,0,1) -> 0 | B50: Check - Operating Costs | E50: =IF(ROUND((Inputs!L55*INDEX(IF($D$52="Mid",Inputs!$L$15:$V$15,Inputs!$L$16:$V$16),MATCH($C$52,Inputs!$L$14:$V$14,0)))+(Inputs!X55*INDEX(IF($D$53="Mid",Inputs!$L$15:$V$15,Inputs!$L$16:$V$16),MATCH($C$53,Inputs!$L$14:$V$14,0)))-(E41+E43),3)=0,0,1) -> 0 | F50: =IF(ROUND((Inputs!M55*INDEX(IF($D$52="Mid",Inputs!$L$15:$V$15,Inputs!$L$16:$V$16),MATCH($C$52,Inputs!$L$14:$V$14,0)))+(Inputs!Y55*INDEX(IF($D$53="Mid",Inputs!$L$15:$V$15,Inputs!$L$16:$V$16),MATCH($C$53,Inputs!$L$14:$V$14,0)))-(F41+F43),3)=0,0,1) -> 0 | G50: =IF(ROUND((Inputs!N55*INDEX(IF($D$52="Mid",Inputs!$L$15:$V$15,Inputs!$L$16:$V$16),MATCH($C$52,Inputs!$L$14:$V$14,0)))+(Inputs!Z55*INDEX(IF($D$53="Mid",Inputs!$L$15:$V$15,Inputs!$L$16:$V$16),MATCH($C$53,Inputs!$L$14:$V$14,0)))-(G41+G43),3)=0,0,1) -> 0 | H50: =IF(ROUND((Inputs!O55*INDEX(IF($D$52="Mid",Inputs!$L$15:$V$15,Inputs!$L$16:$V$16),MATCH($C$52,Inputs!$L$14:$V$14,0)))+(Inputs!AA55*INDEX(IF($D$53="Mid",Inputs!$L$15:$V$15,Inputs!$L$16:$V$16),MATCH($C$53,Inputs!$L$14:$V$14,0)))-(H41+H43),3)=0,0,1) -> 0 | I50: =IF(ROUND((Inputs!P55*INDEX(IF($D$52="Mid",Inputs!$L$15:$V$15,Inputs!$L$16:$V$16),MATCH($C$52,Inputs!$L$14:$V$14,0)))+(Inputs!AB55*INDEX(IF($D$53="Mid",Inputs!$L$15:$V$15,Inputs!$L$16:$V$16),MATCH($C$53,Inputs!$L$14:$V$14,0)))-(I41+I43),3)=0,0,1) -> 0 | J50: =IF(ROUND((Inputs!Q55*INDEX(IF($D$52="Mid",Inputs!$L$15:$V$15,Inputs!$L$16:$V$16),MATCH($C$52,Inputs!$L$14:$V$14,0)))+(Inputs!AC55*INDEX(IF($D$53="Mid",Inputs!$L$15:$V$15,Inputs!$L$16:$V$16),MATCH($C$53,Inputs!$L$14:$V$14,0)))-(J41+J43),3)=0,0,1) -> 0 | K50: =IF(ROUND((Inputs!R55*INDEX(IF($D$52="Mid",Inputs!$L$15:$V$15,Inputs!$L$16:$V$16),MATCH($C$52,Inputs!$L$14:$V$14,0)))+(Inputs!AD55*INDEX(IF($D$53="Mid",Inputs!$L$15:$V$15,Inputs!$L$16:$V$16),MATCH($C$53,Inputs!$L$14:$V$14,0)))-(K41+K43),3)=0,0,1) -> 0 | L50: =IF(ROUND((Inputs!S55*INDEX(IF($D$52="Mid",Inputs!$L$15:$V$15,Inputs!$L$16:$V$16),MATCH($C$52,Inputs!$L$14:$V$14,0)))+(Inputs!AE55*INDEX(IF($D$53="Mid",Inputs!$L$15:$V$15,Inputs!$L$16:$V$16),MATCH($C$53,Inputs!$L$14:$V$14,0)))-(L41+L43),3)=0,0,1) -> 0 | M50: =IF(ROUND((Inputs!T55*INDEX(IF($D$52="Mid",Inputs!$L$15:$V$15,Inputs!$L$16:$V$16),MATCH($C$52,Inputs!$L$14:$V$14,0)))+(Inputs!AF55*INDEX(IF($D$53="Mid",Inputs!$L$15:$V$15,Inputs!$L$16:$V$16),MATCH($C$53,Inputs!$L$14:$V$14,0)))-(M41+M43),3)=0,0,1) -> 0 | N50: =IF(ROUND((Inputs!U55*INDEX(IF($D$52="Mid",Inputs!$L$15:$V$15,Inputs!$L$16:$V$16),MATCH($C$52,Inputs!$L$14:$V$14,0)))+(Inputs!AG55*INDEX(IF($D$53="Mid",Inputs!$L$15:$V$15,Inputs!$L$16:$V$16),MATCH($C$53,Inputs!$L$14:$V$14,0)))-(N41+N43),3)=0,0,1) -> 0 | O50: =IF(ROUND((Inputs!V55*INDEX(IF($D$52="Mid",Inputs!$L$15:$V$15,Inputs!$L$16:$V$16),MATCH($C$52,Inputs!$L$14:$V$14,0)))+(Inputs!AH55*INDEX(IF($D$53="Mid",Inputs!$L$15:$V$15,Inputs!$L$16:$V$16),MATCH($C$53,Inputs!$L$14:$V$14,0)))-(O41+O43),3)=0,0,1) -> 0
B52: Input Dollar Basis - Labour | C52: =Inputs!$F$24 -> 2025 | D52: =Inputs!$H$24 -> End
B53: Input Dollar Basis - Non Labour | C53: =Inputs!F28 -> 2025 | D53: =Inputs!H28 -> End
B55: End

Sheet Outputs
A1: Outputs
B3: PTRM and CPA
B5: Operating Costs - by driver | F5: 2023-28 Regulatory Period | K5: 2028-33 Regulatory Period | P5: Total | Q5: Total
B6: Item | C6: Dollar basis | D6: Units | E6: =Inputs!L$14 -> 2023 | F6: =Inputs!M$14 -> 2024 | G6: =Inputs!N$14 -> 2025 | H6: =Inputs!O$14 -> 2026 | I6: =Inputs!P$14 -> 2027 | J6: =Inputs!Q$14 -> 2028 | K6: =Inputs!R$14 -> 2029 | L6: =Inputs!S$14 -> 2030 | M6: =Inputs!T$14 -> 2031 | N6: =Inputs!U$14 -> 2032 | O6: =Inputs!V$14 -> 2033 | P6: 2023-28 | Q6: All years
B8: Costs
B9: Labour costs (excl labour escalation) | C9: =Inputs!$H$4 -> Real $2023 | D9: $Million | E9: =Calculations!E41/10^6 -> 0 | F9: =Calculations!F41/10^6 -> 0 | G9: =Calculations!G41/10^6 -> 0 | H9: =Calculations!H41/10^6 -> 0 | I9: =Calculations!I41/10^6 -> 0 | J9: =Calculations!J41/10^6 -> 0.4917878891 | K9: =Calculations!K41/10^6 -> 1.114802036 | L9: =Calculations!L41/10^6 -> 2.52365177 | M9: =Calculations!M41/10^6 -> 2.832163164 | N9: =Calculations!N41/10^6 -> 3.449186101 | O9: =Calculations!O41/10^6 -> 3.449186101 | P9: =SUM(F9:J9) -> 0.4917878891 | Q9: =SUM(E9:O9) -> 13.86077706
B10: Non labour costs | C10: =Inputs!$H$4 -> Real $2023 | D10: $Million | E10: =Calculations!E43/10^6 -> 0 | F10: =Calculations!F43/10^6 -> 0 | G10: =Calculations!G43/10^6 -> 0 | H10: =Calculations!H43/10^6 -> 0 | I10: =Calculations!I43/10^6 -> 0 | J10: =Calculations!J43/10^6 -> 0.2480094113 | K10: =Calculations!K43/10^6 -> 1.624551005 | L10: =Calculations!L43/10^6 -> 3.621647107 | M10: =Calculations!M43/10^6 -> 4.145556108 | N10: =Calculations!N43/10^6 -> 4.166354305 | O10: =Calculations!O43/10^6 -> 4.166354305 | P10: =SUM(F10:J10) -> 0.2480094113 | Q10: =SUM(E10:O10) -> 17.97247224
B11: Real input cost escalation | C11: =Inputs!$H$4 -> Real $2023 | D11: $Million | E11: =Calculations!E42/10^6 -> 0 | F11: =Calculations!F42/10^6 -> 0 | G11: =Calculations!G42/10^6 -> 0 | H11: =Calculations!H42/10^6 -> 0 | I11: =Calculations!I42/10^6 -> 0 | J11: =Calculations!J42/10^6 -> 0.001479993033 | K11: =Calculations!K42/10^6 -> 0.01137598747 | L11: =Calculations!L42/10^6 -> 0.04404070813 | M11: =Calculations!M42/10^6 -> 0.07009563717 | N11: =Calculations!N42/10^6 -> 0.1107219471 | O11: =Calculations!O42/10^6 -> 0.1362589111 | P11: =SUM(F11:J11) -> 0.001479993033 | Q11: =SUM(E11:O11) -> 0.3739731839
B13: Total (excluding debt raising costs) | C13: =Inputs!$H$4 -> Real $2023 | D13: $Million | E13: =SUM(E9:E11) -> 0 | F13: 0 | G13: 0 | H13: 0 | I13: 0 | J13: 0.7412772935 | K13: 2.750729029 | L13: 6.189339585 | M13: 7.047814908 | N13: 7.726262353 | O13: 7.751799317 | P13: =SUM(F13:J13) -> 0.7412772935 | Q13: =SUM(E13:O13) -> 32.20722249
B15: Debt Raising Costs | C15: =Inputs!$H$4 -> Real $2023 | D15: $Million | E15: =Calculations!E46/10^6 -> 0 | F15: =Calculations!F46/10^6 -> 0 | G15: =Calculations!G46/10^6 -> 0.002312093906 | H15: =Calculations!H46/10^6 -> 0.00417879544 | I15: =Calculations!I46/10^6 -> 0.00464331147 | J15: =Calculations!J46/10^6 -> 0.01426543275 | K15: =Calculations!K46/10^6 -> 0 | L15: =Calculations!L46/10^6 -> 0 | M15: =Calculations!M46/10^6 -> 0 | N15: =Calculations!N46/10^6 -> 0 | O15: =Calculations!O46/10^6 -> 0 | P15: =SUM(F15:J15) -> 0.02539963356 | Q15: =SUM(E15:O15) -> 0.02539963356
B17: Total (including debt raising costs) | C17: =Inputs!$H$4 -> Real $2023 | D17: $Million | E17: =E13+E15 -> 0 | F17: 0 | G17: 0.002312093906 | H17: 0.00417879544 | I17: 0.00464331147 | J17: 0.7555427262 | K17: =K13+K15 -> 2.750729029 | L17: =L13+L15 -> 6.189339585 | M17: =M13+M15 -> 7.047814908 | N17: =N13+N15 -> 7.726262353 | O17: =O13+O15 -> 7.751799317 | P17: 0.766676927 | Q17: 32.23262212
A19: =IF(SUM(E19:O19)=0,0,1) -> 0 | B19: Check - Calculations | E19: =IF(ROUND(E13-Calculations!E44/10^6,3)=0,0,1) -> 0 | F19: =IF(ROUND(F13-Calculations!F44/10^6,3)=0,0,1) -> 0 | G19: =IF(ROUND(G13-Calculations!G44/10^6,3)=0,0,1) -> 0 | H19: =IF(ROUND(H13-Calculations!H44/10^6,3)=0,0,1) -> 0 | I19: =IF(ROUND(I13-Calculations!I44/10^6,3)=0,0,1) -> 0 | J19: =IF(ROUND(J13-Calculations!J44/10^6,3)=0,0,1) -> 0 | K19: =IF(ROUND(K13-Calculations!K44/10^6,3)=0,0,1) -> 0 | L19: =IF(ROUND(L13-Calculations!L44/10^6,3)=0,0,1) -> 0 | M19: =IF(ROUND(M13-Calculations!M44/10^6,3)=0,0,1) -> 0 | N19: =IF(ROUND(N13-Calculations!N44/10^6,3)=0,0,1) -> 0 | O19: =IF(ROUND(O13-Calculations!O44/10^6,3)=0,0,1) -> 0
B21: Operating Costs - by workstream | F21: =F$5 -> 2023-28 Regulatory Period | K21: =K$5 -> 2028-33 Regulatory Period | P21: =$P$5 -> Total | Q21: =$Q$5 -> Total
B22: Item | C22: Dollar basis | D22: Units | E22: =Inputs!L$14 -> 2023 | F22: =Inputs!M$14 -> 2024 | G22: =Inputs!N$14 -> 2025 | H22: =Inputs!O$14 -> 2026 | I22: =Inputs!P$14 -> 2027 | J22: =Inputs!Q$14 -> 2028 | K22: =Inputs!R$14 -> 2029 | L22: =Inputs!S$14 -> 2030 | M22: =Inputs!T$14 -> 2031 | N22: =Inputs!U$14 -> 2032 | O22: =Inputs!V$14 -> 2033 | P22: =$P$6 -> 2023-28 | Q22: =$Q$6 -> All years
B24: =Calculations!$B$5 -> Network Operations | C24: =Inputs!$H$4 -> Real $2023 | D24: $Million | E24: =Calculations!E9/10^6 -> 0 | F24: =Calculations!F9/10^6 -> 0 | G24: =Calculations!G9/10^6 -> 0 | H24: =Calculations!H9/10^6 -> 0 | I24: =Calculations!I9/10^6 -> 0 | J24: =Calculations!J9/10^6 -> 0.1064679982 | K24: =Calculations!K9/10^6 -> 1.71696342 | L24: =Calculations!L9/10^6 -> 4.342872491 | M24: =Calculations!M9/10^6 -> 5.036519097 | N24: =Calculations!N9/10^6 -> 5.388614007 | O24: =Calculations!O9/10^6 -> 5.403872312 | P24: =SUM(F24:J24) -> 0.1064679982 | Q24: =SUM(E24:O24) -> 21.99530932
B25: =Calculations!$B$10 -> Network Planning | C25: =Inputs!$H$4 -> Real $2023 | D25: $Million | E25: =Calculations!E14/10^6 -> 0 | F25: =Calculations!F14/10^6 -> 0 | G25: =Calculations!G14/10^6 -> 0 | H25: =Calculations!H14/10^6 -> 0 | I25: =Calculations!I14/10^6 -> 0 | J25: =Calculations!J14/10^6 -> 0.6348092953 | K25: =Calculations!K14/10^6 -> 1.033765608 | L25: =Calculations!L14/10^6 -> 1.846467094 | M25: =Calculations!M14/10^6 -> 2.011295812 | N25: =Calculations!N14/10^6 -> 2.337648346 | O25: =Calculations!O14/10^6 -> 2.347927005 | P25: 0.6348092953 | Q25: 10.21191316
B26: =Calculations!$B$15 -> Asset Management | C26: =Inputs!$H$4 -> Real $2023 | D26: $Million | E26: =Calculations!E19/10^6 -> 0 | F26: =Calculations!F19/10^6 -> 0 | G26: =Calculations!G19/10^6 -> 0 | H26: =Calculations!H19/10^6 -> 0 | I26: =Calculations!I19/10^6 -> 0 | J26: =Calculations!J19/10^6 -> 0 | K26: =Calculations!K19/10^6 -> 0 | L26: =Calculations!L19/10^6 -> 0 | M26: =Calculations!M19/10^6 -> 0 | N26: =Calculations!N19/10^6 -> 0 | O26: =Calculations!O19/10^6 -> 0 | P26: 0 | Q26: 0
B27: =Calculations!$B$20 -> Commercial | C27: =Inputs!$H$4 -> Real $2023 | D27: $Million | E27: =Calculations!E24/10^6 -> 0 | F27: =Calculations!F24/10^6 -> 0 | G27: =Calculations!G24/10^6 -> 0 | H27: =Calculations!H24/10^6 -> 0 | I27: =Calculations!I24/10^6 -> 0 | J27: =Calculations!J24/10^6 -> 0 | K27: =Calculations!K24/10^6 -> 0 | L27: =Calculations!L24/10^6 -> 0 | M27: =Calculations!M24/10^6 -> 0 | N27: =Calculations!N24/10^6 -> 0 | O27: =Calculations!O24/10^6 -> 0 | P27: 0 | Q27: 0
B28: =Calculations!$B$25 -> Delivery | C28: =Inputs!$H$4 -> Real $2023 | D28: $Million | E28: =Calculations!E29/10^6 -> 0 | F28: =Calculations!F29/10^6 -> 0 | G28: =Calculations!G29/10^6 -> 0 | H28: =Calculations!H29/10^6 -> 0 | I28: =Calculations!I29/10^6 -> 0 | J28: =Calculations!J29/10^6 -> 0 | K28: =Calculations!K29/10^6 -> 0 | L28: =Calculations!L29/10^6 -> 0 | M28: =Calculations!M29/10^6 -> 0 | N28: =Calculations!N29/10^6 -> 0 | O28: =Calculations!O29/10^6 -> 0 | P28: 0 | Q28: 0
B29: =Calculations!$B$30 -> Finance & Audit | C29: =Inputs!$H$4 -> Real $2023 | D29: $Million | E29: =Calculations!E34/10^6 -> 0 | F29: =Calculations!F34/10^6 -> 0 | G29: =Calculations!G34/10^6 -> 0 | H29: =Calculations!H34/10^6 -> 0 | I29: =Calculations!I34/10^6 -> 0 | J29: =Calculations!J34/10^6 -> 0 | K29: =Calculations!K34/10^6 -> 0 | L29: =Calculations!L34/10^6 -> 0 | M29: =Calculations!M34/10^6 -> 0 | N29: =Calculations!N34/10^6 -> 0 | O29: =Calculations!O34/10^6 -> 0 | P29: 0 | Q29: 0
B30: =Calculations!$B$35 -> Regulatory submissions | C30: =Inputs!$H$4 -> Real $2023 | D30: $Million | E30: =Calculations!E35/10^6 -> 0 | F30: =Calculations!F35/10^6 -> 0 | G30: =Calculations!G35/10^6 -> 0 | H30: =Calculations!H35/10^6 -> 0 | I30: =Calculations!I35/10^6 -> 0 | J30: =Calculations!J35/10^6 -> 0 | K30: =Calculations!K35/10^6 -> 0 | L30: =Calculations!L35/10^6 -> 0 | M30: =Calculations!M35/10^6 -> 0 | N30: =Calculations!N35/10^6 -> 0 | O30: =Calculations!O35/10^6 -> 0 | P30: 0 | Q30: 0
B32: Total (excluding debt raising costs) | C32: =Inputs!$H$4 -> Real $2023 | D32: $Million | E32: =SUM(E24:E30) -> 0 | F32: 0 | G32: 0 | H32: 0 | I32: 0 | J32: 0.7412772935 | K32: 2.750729029 | L32: 6.189339585 | M32: 7.047814908 | N32: 7.726262353 | O32: 7.751799317 | P32: 0.7412772935 | Q32: 32.20722249
A34: =IF(SUM(E34:O34)=0,0,1) -> 0 | B34: Check - Reconciliation | E34: =IF(ROUND(E32-E13,3)=0,0,1) -> 0 | F34: =IF(ROUND(F32-F13,3)=0,0,1) -> 0 | G34: 0 | H34: 0 | I34: 0 | J34: 0 | K34: 0 | L34: 0 | M34: 0 | N34: 0 | O34: 0
B36: Operating Costs - by Workstream | F36: =F$5 -> 2023-28 Regulatory Period | K36: =K$5 -> 2028-33 Regulatory Period | P36: =$P$5 -> Total | Q36: =$Q$5 -> Total
C37: Dollar basis | D37: Units | E37: =Inputs!L$14 -> 2023 | F37: =Inputs!M$14 -> 2024 | G37: =Inputs!N$14 -> 2025 | H37: =Inputs!O$14 -> 2026 | I37: =Inputs!P$14 -> 2027 | J37: =Inputs!Q$14 -> 2028 | K37: =Inputs!R$14 -> 2029 | L37: =Inputs!S$14 -> 2030 | M37: =Inputs!T$14 -> 2031 | N37: =Inputs!U$14 -> 2032 | O37: =Inputs!V$14 -> 2033 | P37: =$P$6 -> 2023-28 | Q37: =$Q$6 -> All years
B39: =Calculations!$B$5 -> Network Operations | C39: Real $2025 | D39: $Million | E39: =E24*E$49 -> 0 | F39: =F24*F$49 -> 0 | G39: 0 | H39: 0 | I39: 0 | J39: 0.112838559 | K39: 1.819698704 | L39: 4.602730231 | M39: 5.337881496 | N39: 5.711044164 | O39: 5.727215457 | P39: =SUM(F39:J39) -> 0.112838559 | Q39: =SUM(E39:O39) -> 23.31140861
B40: =Calculations!$B$10 -> Network Planning | C40: Real $2025 | D40: $Million | E40: =E25*E$49 -> 0 | F40: 0 | G40: 0 | H40: 0 | I40: 0 | J40: 0.6727933968 | K40: 1.095621441 | L40: 1.956951289 | M40: 2.131642607 | N40: 2.477522593 | O40: 2.48841628 | P40: 0.6727933968 | Q40: 10.82294761
B41: =Calculations!$B$15 -> Asset Management | C41: Real $2025 | D41: $Million | E41: =E26*E$49 -> 0 | F41: 0 | G41: 0 | H41: 0 | I41: 0 | J41: 0 | K41: 0 | L41: 0 | M41: 0 | N41: 0 | O41: 0 | P41: 0 | Q41: 0
B42: =Calculations!$B$20 -> Commercial | C42: Real $2025 | D42: $Million | E42: =E27*E$49 -> 0 | F42: 0 | G42: 0 | H42: 0 | I42: 0 | J42: 0 | K42: 0 | L42: 0 | M42: 0 | N42: 0 | O42: 0 | P42: 0 | Q42: 0
B43: =Calculations!$B$25 -> Delivery | C43: Real $2025 | D43: $Million | E43: =E28*E$49 -> 0 | F43: 0 | G43: 0 | H43: 0 | I43: 0 | J43: 0 | K43: 0 | L43: 0 | M43: 0 | N43: 0 | O43: 0 | P43: 0 | Q43: 0
B44: =Calculations!$B$30 -> Finance & Audit | C44: Real $2025 | D44: $Million | E44: =E29*E$49 -> 0 | F44: 0 | G44: 0 | H44: 0 | I44: 0 | J44: 0 | K44: 0 | L44: 0 | M44: 0 | N44: 0 | O44: 0 | P44: 0 | Q44: 0
B45: =Calculations!$B$35 -> Regulatory submissions | C45: Real $2025 | D45: $Million | E45: =E30*E$49 -> 0 | F45: 0 | G45: 0 | H45: 0 | I45: 0 | J45: 0 | K45: 0 | L45: 0 | M45: 0 | N45: 0 | O45: 0 | P45: 0 | Q45: 0
B47: Total (excluding debt raising costs) | C47: Real $2025 | D47: $Million | E47: =SUM(E39:E45) -> 0 | F47: =SUM(F39:F45) -> 0 | G47: =SUM(G39:G45) -> 0 | H47: 0 | I47: 0 | J47: 0.7856319558 | K47: 2.915320145 | L47: 6.55968152 | M47: 7.469524103 | N47: 8.188566757 | O47: 8.215631737 | P47: 0.7856319558 | Q47: 34.13435622
B49: Real 2023 to Real 2025 | E49: =Inputs!L16/Inputs!N16 -> 1.059835453 | F49: =E49 -> 1.059835453 | G49: 1.059835453 | H49: 1.059835453 | I49: 1.059835453 | J49: 1.059835453 | K49: 1.059835453 | L49: 1.059835453 | M49: 1.059835453 | N49: 1.059835453 | O49: 1.059835453 | Q49: =(Q13-Q11)*O49*10^6 -> 33738006.18
B51: Operating Costs - by item | F51: =F$5 -> 2023-28 Regulatory Period | K51: =K$5 -> 2028-33 Regulatory Period | P51: =$P$5 -> Total | Q51: =$Q$5 -> Total
C52: Dollar basis | D52: Units | E52: =Inputs!L$14 -> 2023 | F52: =Inputs!M$14 -> 2024 | G52: =Inputs!N$14 -> 2025 | H52: =Inputs!O$14 -> 2026 | I52: =Inputs!P$14 -> 2027 | J52: =Inputs!Q$14 -> 2028 | K52: =Inputs!R$14 -> 2029 | L52: =Inputs!S$14 -> 2030 | M52: =Inputs!T$14 -> 2031 | N52: =Inputs!U$14 -> 2032 | O52: =Inputs!V$14 -> 2033 | P52: =$P$6 -> 2023-28 | Q52: =$Q$6 -> All years
B54: Enhanced SCADA/EMS | C54: Real $2025 | D54: $Million | E54: =SUMPRODUCT((Inputs!$B$24:$B$53=$B54)*(Inputs!$I$24:$I$53)*(Inputs!X$24:X$53))/10^6 -> 0 | F54: =SUMPRODUCT((Inputs!$B$24:$B$53=$B54)*(Inputs!$I$24:$I$53)*(Inputs!Y$24:Y$53))/10^6 -> 0 | G54: =SUMPRODUCT((Inputs!$B$24:$B$53=$B54)*(Inputs!$I$24:$I$53)*(Inputs!Z$24:Z$53))/10^6 -> 0 | H54: =SUMPRODUCT((Inputs!$B$24:$B$53=$B54)*(Inputs!$I$24:$I$53)*(Inputs!AA$24:AA$53))/10^6 -> 0 | I54: =SUMPRODUCT((Inputs!$B$24:$B$53=$B54)*(Inputs!$I$24:$I$53)*(Inputs!AB$24:AB$53))/10^6 -> 0 | J54: =SUMPRODUCT((Inputs!$B$24:$B$53=$B54)*(Inputs!$I$24:$I$53)*(Inputs!AC$24:AC$53))/10^6 -> 0 | K54: =SUMPRODUCT((Inputs!$B$24:$B$53=$B54)*(Inputs!$I$24:$I$53)*(Inputs!AD$24:AD$53))/10^6 -> 0.25485 | L54: =SUMPRODUCT((Inputs!$B$24:$B$53=$B54)*(Inputs!$I$24:$I$53)*(Inputs!AE$24:AE$53))/10^6 -> 1.0194 | M54: =SUMPRODUCT((Inputs!$B$24:$B$53=$B54)*(Inputs!$I$24:$I$53)*(Inputs!AF$24:AF$53))/10^6 -> 1.0194 | N54: =SUMPRODUCT((Inputs!$B$24:$B$53=$B54)*(Inputs!$I$24:$I$53)*(Inputs!AG$24:AG$53))/10^6 -> 1.0194 | O54: =SUMPRODUCT((Inputs!$B$24:$B$53=$B54)*(Inputs!$I$24:$I$53)*(Inputs!AH$24:AH$53))/10^6 -> 1.0194 | P54: =SUM(F54:J54) -> 0 | Q54: =SUM(E54:O54) -> 4.33245 | R54: SCADA/AEMS system
B55: Training LMS | C55: Real $2025 | D55: $Million | E55: =SUMPRODUCT((Inputs!$B$24:$B$53=$B55)*(Inputs!$I$24:$I$53)*(Inputs!X$24:X$53))/10^6 -> 0 | F55: =SUMPRODUCT((Inputs!$B$24:$B$53=$B55)*(Inputs!$I$24:$I$53)*(Inputs!Y$24:Y$53))/10^6 -> 0 | G55: =SUMPRODUCT((Inputs!$B$24:$B$53=$B55)*(Inputs!$I$24:$I$53)*(Inputs!Z$24:Z$53))/10^6 -> 0 | H55: =SUMPRODUCT((Inputs!$B$24:$B$53=$B55)*(Inputs!$I$24:$I$53)*(Inputs!AA$24:AA$53))/10^6 -> 0 | I55: =SUMPRODUCT((Inputs!$B$24:$B$53=$B55)*(Inputs!$I$24:$I$53)*(Inputs!AB$24:AB$53))/10^6 -> 0 | J55: =SUMPRODUCT((Inputs!$B$24:$B$53=$B55)*(Inputs!$I$24:$I$53)*(Inputs!AC$24:AC$53))/10^6 -> 0 | K55: =SUMPRODUCT((Inputs!$B$24:$B$53=$B55)*(Inputs!$I$24:$I$53)*(Inputs!AD$24:AD$53))/10^6 -> 0.003 | L55: =SUMPRODUCT((Inputs!$B$24:$B$53=$B55)*(Inputs!$I$24:$I$53)*(Inputs!AE$24:AE$53))/10^6 -> 0.012 | M55: =SUMPRODUCT((Inputs!$B$24:$B$53=$B55)*(Inputs!$I$24:$I$53)*(Inputs!AF$24:AF$53))/10^6 -> 0.012 | N55: =SUMPRODUCT((Inputs!$B$24:$B$53=$B55)*(Inputs!$I$24:$I$53)*(Inputs!AG$24:AG$53))/10^6 -> 0.012 | O55: =SUMPRODUCT((Inputs!$B$24:$B$53=$B55)*(Inputs!$I$24:$I$53)*(Inputs!AH$24:AH$53))/10^6 -> 0.012 | P55: 0 | Q55: 0.051 | R55: Operational planning system and training LMS
B56: Wide Area Monitoring | C56: Real $2025 | D56: $Million | E56: =SUMPRODUCT((Inputs!$B$24:$B$53=$B56)*(Inputs!$I$24:$I$53)*(Inputs!X$24:X$53))/10^6 -> 0 | F56: =SUMPRODUCT((Inputs!$B$24:$B$53=$B56)*(Inputs!$I$24:$I$53)*(Inputs!Y$24:Y$53))/10^6 -> 0 | G56: =SUMPRODUCT((Inputs!$B$24:$B$53=$B56)*(Inputs!$I$24:$I$53)*(Inputs!Z$24:Z$53))/10^6 -> 0 | H56: =SUMPRODUCT((Inputs!$B$24:$B$53=$B56)*(Inputs!$I$24:$I$53)*(Inputs!AA$24:AA$53))/10^6 -> 0 | I56: =SUMPRODUCT((Inputs!$B$24:$B$53=$B56)*(Inputs!$I$24:$I$53)*(Inputs!AB$24:AB$53))/10^6 -> 0 | J56: =SUMPRODUCT((Inputs!$B$24:$B$53=$B56)*(Inputs!$I$24:$I$53)*(Inputs!AC$24:AC$53))/10^6 -> 0 | K56: =SUMPRODUCT((Inputs!$B$24:$B$53=$B56)*(Inputs!$I$24:$I$53)*(Inputs!AD$24:AD$53))/10^6 -> 0 | L56: =SUMPRODUCT((Inputs!$B$24:$B$53=$B56)*(Inputs!$I$24:$I$53)*(Inputs!AE$24:AE$53))/10^6 -> 0 | M56: =SUMPRODUCT((Inputs!$B$24:$B$53=$B56)*(Inputs!$I$24:$I$53)*(Inputs!AF$24:AF$53))/10^6 -> 0.1924333333 | N56: =SUMPRODUCT((Inputs!$B$24:$B$53=$B56)*(Inputs!$I$24:$I$53)*(Inputs!AG$24:AG$53))/10^6 -> 0.5773 | O56: =SUMPRODUCT((Inputs!$B$24:$B$53=$B56)*(Inputs!$I$24:$I$53)*(Inputs!AH$24:AH$53))/10^6 -> 0.5773 | P56: 0 | Q56: 1.347033333 | R56: Wide area monitoring
B57: Alarm Management Technologies | C57: Real $2025 | D57: $Million | E57: =SUMPRODUCT((Inputs!$B$24:$B$53=$B57)*(Inputs!$I$24:$I$53)*(Inputs!X$24:X$53))/10^6 -> 0 | F57: =SUMPRODUCT((Inputs!$B$24:$B$53=$B57)*(Inputs!$I$24:$I$53)*(Inputs!Y$24:Y$53))/10^6 -> 0 | G57: =SUMPRODUCT((Inputs!$B$24:$B$53=$B57)*(Inputs!$I$24:$I$53)*(Inputs!Z$24:Z$53))/10^6 -> 0 | H57: =SUMPRODUCT((Inputs!$B$24:$B$53=$B57)*(Inputs!$I$24:$I$53)*(Inputs!AA$24:AA$53))/10^6 -> 0 | I57: =SUMPRODUCT((Inputs!$B$24:$B$53=$B57)*(Inputs!$I$24:$I$53)*(Inputs!AB$24:AB$53))/10^6 -> 0 | J57: =SUMPRODUCT((Inputs!$B$24:$B$53=$B57)*(Inputs!$I$24:$I$53)*(Inputs!AC$24:AC$53))/10^6 -> 0 | K57: =SUMPRODUCT((Inputs!$B$24:$B$53=$B57)*(Inputs!$I$24:$I$53)*(Inputs!AD$24:AD$53))/10^6 -> 0.205 | L57: =SUMPRODUCT((Inputs!$B$24:$B$53=$B57)*(Inputs!$I$24:$I$53)*(Inputs!AE$24:AE$53))/10^6 -> 0.82 | M57: =SUMPRODUCT((Inputs!$B$24:$B$53=$B57)*(Inputs!$I$24:$I$53)*(Inputs!AF$24:AF$53))/10^6 -> 0.82 | N57: =SUMPRODUCT((Inputs!$B$24:$B$53=$B57)*(Inputs!$I$24:$I$53)*(Inputs!AG$24:AG$53))/10^6 -> 0.82 | O57: =SUMPRODUCT((Inputs!$B$24:$B$53=$B57)*(Inputs!$I$24:$I$53)*(Inputs!AH$24:AH$53))/10^6 -> 0.82 | P57: 0 | Q57: 3.485 | R57: Alarm management technologies – software/licensing
B58: Hardware maintenance uplift | C58: Real $2025 | D58: $Million | E58: =SUMPRODUCT((Inputs!$B$24:$B$53=$B58)*(Inputs!$I$24:$I$53)*(Inputs!X$24:X$53))/10^6 -> 0 | F58: =SUMPRODUCT((Inputs!$B$24:$B$53=$B58)*(Inputs!$I$24:$I$53)*(Inputs!Y$24:Y$53))/10^6 -> 0 | G58: =SUMPRODUCT((Inputs!$B$24:$B$53=$B58)*(Inputs!$I$24:$I$53)*(Inputs!Z$24:Z$53))/10^6 -> 0 | H58: =SUMPRODUCT((Inputs!$B$24:$B$53=$B58)*(Inputs!$I$24:$I$53)*(Inputs!AA$24:AA$53))/10^6 -> 0 | I58: =SUMPRODUCT((Inputs!$B$24:$B$53=$B58)*(Inputs!$I$24:$I$53)*(Inputs!AB$24:AB$53))/10^6 -> 0 | J58: =SUMPRODUCT((Inputs!$B$24:$B$53=$B58)*(Inputs!$I$24:$I$53)*(Inputs!AC$24:AC$53))/10^6 -> 0 | K58: =SUMPRODUCT((Inputs!$B$24:$B$53=$B58)*(Inputs!$I$24:$I$53)*(Inputs!AD$24:AD$53))/10^6 -> 0.25700775 | L58: =SUMPRODUCT((Inputs!$B$24:$B$53=$B58)*(Inputs!$I$24:$I$53)*(Inputs!AE$24:AE$53))/10^6 -> 1.028031 | M58: =SUMPRODUCT((Inputs!$B$24:$B$53=$B58)*(Inputs!$I$24:$I$53)*(Inputs!AF$24:AF$53))/10^6 -> 1.028031 | N58: =SUMPRODUCT((Inputs!$B$24:$B$53=$B58)*(Inputs!$I$24:$I$53)*(Inputs!AG$24:AG$53))/10^6 -> 1.028031 | O58: =SUMPRODUCT((Inputs!$B$24:$B$53=$B58)*(Inputs!$I$24:$I$53)*(Inputs!AH$24:AH$53))/10^6 -> 1.028031 | P58: 0 | Q58: 4.36913175 | R58: Hardware support
B59: Training attendence during the project | C59: Real $2025 | D59: $Million | E59: =SUMPRODUCT((Inputs!$B$24:$B$53=$B59)*(Inputs!$I$24:$I$53)*(Inputs!X$24:X$53))/10^6 -> 0 | F59: =SUMPRODUCT((Inputs!$B$24:$B$53=$B59)*(Inputs!$I$24:$I$53)*(Inputs!Y$24:Y$53))/10^6 -> 0 | G59: =SUMPRODUCT((Inputs!$B$24:$B$53=$B59)*(Inputs!$I$24:$I$53)*(Inputs!Z$24:Z$53))/10^6 -> 0 | H59: =SUMPRODUCT((Inputs!$B$24:$B$53=$B59)*(Inputs!$I$24:$I$53)*(Inputs!AA$24:AA$53))/10^6 -> 0 | I59: =SUMPRODUCT((Inputs!$B$24:$B$53=$B59)*(Inputs!$I$24:$I$53)*(Inputs!AB$24:AB$53))/10^6 -> 0 | J59: =SUMPRODUCT((Inputs!$B$24:$B$53=$B59)*(Inputs!$I$24:$I$53)*(Inputs!AC$24:AC$53))/10^6 -> 0 | K59: =SUMPRODUCT((Inputs!$B$24:$B$53=$B59)*(Inputs!$I$24:$I$53)*(Inputs!AD$24:AD$53))/10^6 -> 0.525605 | L59: =SUMPRODUCT((Inputs!$B$24:$B$53=$B59)*(Inputs!$I$24:$I$53)*(Inputs!AE$24:AE$53))/10^6 -> 0 | M59: =SUMPRODUCT((Inputs!$B$24:$B$53=$B59)*(Inputs!$I$24:$I$53)*(Inputs!AF$24:AF$53))/10^6 -> 0.362824 | N59: =SUMPRODUCT((Inputs!$B$24:$B$53=$B59)*(Inputs!$I$24:$I$53)*(Inputs!AG$24:AG$53))/10^6 -> 0 | O59: =SUMPRODUCT((Inputs!$B$24:$B$53=$B59)*(Inputs!$I$24:$I$53)*(Inputs!AH$24:AH$53))/10^6 -> 0 | P59: 0 | Q59: 0.888429 | R59: Operational planning system and training LMS
B60: Data modelling and network management | C60: Real $2025 | D60: $Million | E60: =SUMPRODUCT((Inputs!$B$24:$B$53=$B60)*(Inputs!$I$24:$I$53)*(Inputs!X$24:X$53))/10^6 -> 0 | F60: =SUMPRODUCT((Inputs!$B$24:$B$53=$B60)*(Inputs!$I$24:$I$53)*(Inputs!Y$24:Y$53))/10^6 -> 0 | G60: =SUMPRODUCT((Inputs!$B$24:$B$53=$B60)*(Inputs!$I$24:$I$53)*(Inputs!Z$24:Z$53))/10^6 -> 0 | H60: =SUMPRODUCT((Inputs!$B$24:$B$53=$B60)*(Inputs!$I$24:$I$53)*(Inputs!AA$24:AA$53))/10^6 -> 0 | I60: =SUMPRODUCT((Inputs!$B$24:$B$53=$B60)*(Inputs!$I$24:$I$53)*(Inputs!AB$24:AB$53))/10^6 -> 0 | J60: =SUMPRODUCT((Inputs!$B$24:$B$53=$B60)*(Inputs!$I$24:$I$53)*(Inputs!AC$24:AC$53))/10^6 -> 0 | K60: =SUMPRODUCT((Inputs!$B$24:$B$53=$B60)*(Inputs!$I$24:$I$53)*(Inputs!AD$24:AD$53))/10^6 -> 0.160875 | L60: =SUMPRODUCT((Inputs!$B$24:$B$53=$B60)*(Inputs!$I$24:$I$53)*(Inputs!AE$24:AE$53))/10^6 -> 0.6435 | M60: =SUMPRODUCT((Inputs!$B$24:$B$53=$B60)*(Inputs!$I$24:$I$53)*(Inputs!AF$24:AF$53))/10^6 -> 0.6435 | N60: =SUMPRODUCT((Inputs!$B$24:$B$53=$B60)*(Inputs!$I$24:$I$53)*(Inputs!AG$24:AG$53))/10^6 -> 0.6435 | O60: =SUMPRODUCT((Inputs!$B$24:$B$53=$B60)*(Inputs!$I$24:$I$53)*(Inputs!AH$24:AH$53))/10^6 -> 0.6435 | P60: =SUM(F60:J60) -> 0 | Q60: =SUM(E60:O60) -> 2.734875 | R60: Data modelling and network management
B61: Operational planning system | C61: Real $2025 | D61: $Million | E61: =SUMPRODUCT((Inputs!$B$24:$B$53=$B61)*(Inputs!$I$24:$I$53)*(Inputs!X$24:X$53))/10^6 -> 0 | F61: =SUMPRODUCT((Inputs!$B$24:$B$53=$B61)*(Inputs!$I$24:$I$53)*(Inputs!Y$24:Y$53))/10^6 -> 0 | G61: =SUMPRODUCT((Inputs!$B$24:$B$53=$B61)*(Inputs!$I$24:$I$53)*(Inputs!Z$24:Z$53))/10^6 -> 0 | H61: =SUMPRODUCT((Inputs!$B$24:$B$53=$B61)*(Inputs!$I$24:$I$53)*(Inputs!AA$24:AA$53))/10^6 -> 0 | I61: =SUMPRODUCT((Inputs!$B$24:$B$53=$B61)*(Inputs!$I$24:$I$53)*(Inputs!AB$24:AB$53))/10^6 -> 0 | J61: =SUMPRODUCT((Inputs!$B$24:$B$53=$B61)*(Inputs!$I$24:$I$53)*(Inputs!AC$24:AC$53))/10^6 -> 0.2628491667 | K61: =SUMPRODUCT((Inputs!$B$24:$B$53=$B61)*(Inputs!$I$24:$I$53)*(Inputs!AD$24:AD$53))/10^6 -> 0.315419 | L61: =SUMPRODUCT((Inputs!$B$24:$B$53=$B61)*(Inputs!$I$24:$I$53)*(Inputs!AE$24:AE$53))/10^6 -> 0.315419 | M61: =SUMPRODUCT((Inputs!$B$24:$B$53=$B61)*(Inputs!$I$24:$I$53)*(Inputs!AF$24:AF$53))/10^6 -> 0.315419 | N61: =SUMPRODUCT((Inputs!$B$24:$B$53=$B61)*(Inputs!$I$24:$I$53)*(Inputs!AG$24:AG$53))/10^6 -> 0.315419 | O61: =SUMPRODUCT((Inputs!$B$24:$B$53=$B61)*(Inputs!$I$24:$I$53)*(Inputs!AH$24:AH$53))/10^6 -> 0.315419 | P61: =SUM(F61:J61) -> 0.2628491667 | Q61: =SUM(E61:O61) -> 1.839944167 | R61: Operational planning system and training LMS
B62: System Operator ( Control Room Operator) | C62: Real $2025 | D62: $Million | E62: =SUMPRODUCT((Inputs!$B$24:$B$53=$B62)*(Inputs!$J$24:$J$53)*(Inputs!L$24:L$53))*Inputs!$AJ$23/10^6 -> 0 | F62: =SUMPRODUCT((Inputs!$B$24:$B$53=$B62)*(Inputs!$J$24:$J$53)*(Inputs!M$24:M$53))*Inputs!$AJ$23/10^6 -> 0 | G62: =SUMPRODUCT((Inputs!$B$24:$B$53=$B62)*(Inputs!$J$24:$J$53)*(Inputs!N$24:N$53))*Inputs!$AJ$23/10^6 -> 0 | H62: =SUMPRODUCT((Inputs!$B$24:$B$53=$B62)*(Inputs!$J$24:$J$53)*(Inputs!O$24:O$53))*Inputs!$AJ$23/10^6 -> 0 | I62: =SUMPRODUCT((Inputs!$B$24:$B$53=$B62)*(Inputs!$J$24:$J$53)*(Inputs!P$24:P$53))*Inputs!$AJ$23/10^6 -> 0 | J62: =SUMPRODUCT((Inputs!$B$24:$B$53=$B62)*(Inputs!$J$24:$J$53)*(Inputs!Q$24:Q$53))*Inputs!$AJ$23/10^6 -> 0 | K62: =SUMPRODUCT((Inputs!$B$24:$B$53=$B62)*(Inputs!$J$24:$J$53)*(Inputs!R$24:R$53))*Inputs!$AJ$23/10^6 -> 0 | L62: =SUMPRODUCT((Inputs!$B$24:$B$53=$B62)*(Inputs!$J$24:$J$53)*(Inputs!S$24:S$53))*Inputs!$AJ$23/10^6 -> 0 | M62: =SUMPRODUCT((Inputs!$B$24:$B$53=$B62)*(Inputs!$J$24:$J$53)*(Inputs!T$24:T$53))*Inputs!$AJ$23/10^6 -> 0.163485696 | N62: =SUMPRODUCT((Inputs!$B$24:$B$53=$B62)*(Inputs!$J$24:$J$53)*(Inputs!U$24:U$53))*Inputs!$AJ$23/10^6 -> 0.490457088 | O62: =SUMPRODUCT((Inputs!$B$24:$B$53=$B62)*(Inputs!$J$24:$J$53)*(Inputs!V$24:V$53))*Inputs!$AJ$23/10^6 -> 0.490457088 | P62: =SUM(F62:J62) -> 0 | Q62: =SUM(E62:O62) -> 1.144399872 | R62: Internal staffing – control room/forecasting
B63: Training Simulator Engineer | C63: Real $2025 | D63: $Million | E63: =SUMPRODUCT((Inputs!$B$24:$B$53=$B63)*(Inputs!$J$24:$J$53)*(Inputs!L$24:L$53))*Inputs!$AJ$23/10^6 -> 0 | F63: =SUMPRODUCT((Inputs!$B$24:$B$53=$B63)*(Inputs!$J$24:$J$53)*(Inputs!M$24:M$53))*Inputs!$AJ$23/10^6 -> 0 | G63: =SUMPRODUCT((Inputs!$B$24:$B$53=$B63)*(Inputs!$J$24:$J$53)*(Inputs!N$24:N$53))*Inputs!$AJ$23/10^6 -> 0 | H63: =SUMPRODUCT((Inputs!$B$24:$B$53=$B63)*(Inputs!$J$24:$J$53)*(Inputs!O$24:O$53))*Inputs!$AJ$23/10^6 -> 0 | I63: =SUMPRODUCT((Inputs!$B$24:$B$53=$B63)*(Inputs!$J$24:$J$53)*(Inputs!P$24:P$53))*Inputs!$AJ$23/10^6 -> 0 | J63: =SUMPRODUCT((Inputs!$B$24:$B$53=$B63)*(Inputs!$J$24:$J$53)*(Inputs!Q$24:Q$53))*Inputs!$AJ$23/10^6 -> 0 | K63: =Inputs!R25*Inputs!$J25*Inputs!$AJ$23/10^6 -> 0.051604704 | L63: =Inputs!S25*Inputs!$J25*Inputs!$AJ$23/10^6 -> 0.206418816 | M63: =Inputs!T25*Inputs!$J25*Inputs!$AJ$23/10^6 -> 0.206418816 | N63: =Inputs!U25*Inputs!$J25*Inputs!$AJ$23/10^6 -> 0.206418816 | O63: =Inputs!V25*Inputs!$J25*Inputs!$AJ$23/10^6 -> 0.206418816 | P63: =SUM(F63:J63) -> 0 | Q63: =SUM(E63:O63) -> 0.877279968 | R63: Internal staffing – training simulator maintenance
B64: SCADA Maintenance Engineer | C64: Real $2025 | D64: $Million | E64: =SUMPRODUCT((Inputs!$B$24:$B$53=$B64)*(Inputs!$J$24:$J$53)*(Inputs!L$24:L$53))*Inputs!$AJ$23/10^6 -> 0 | F64: =SUMPRODUCT((Inputs!$B$24:$B$53=$B64)*(Inputs!$J$24:$J$53)*(Inputs!M$24:M$53))*Inputs!$AJ$23/10^6 -> 0 | G64: =SUMPRODUCT((Inputs!$B$24:$B$53=$B64)*(Inputs!$J$24:$J$53)*(Inputs!N$24:N$53))*Inputs!$AJ$23/10^6 -> 0 | H64: =SUMPRODUCT((Inputs!$B$24:$B$53=$B64)*(Inputs!$J$24:$J$53)*(Inputs!O$24:O$53))*Inputs!$AJ$23/10^6 -> 0 | I64: =SUMPRODUCT((Inputs!$B$24:$B$53=$B64)*(Inputs!$J$24:$J$53)*(Inputs!P$24:P$53))*Inputs!$AJ$23/10^6 -> 0 | J64: =SUMPRODUCT((Inputs!$B$24:$B$53=$B64)*(Inputs!$J$24:$J$53)*(Inputs!Q$24:Q$53))*Inputs!$AJ$23/10^6 -> 0 | K64: =SUMPRODUCT((Inputs!$B$24:$B$53=$B64)*(Inputs!$J$24:$J$53)*(Inputs!R$24:R$53))*Inputs!$AJ$23/10^6-K63 -> 0.25802352 | L64: =SUMPRODUCT((Inputs!$B$24:$B$53=$B64)*(Inputs!$J$24:$J$53)*(Inputs!S$24:S$53))*Inputs!$AJ$23/10^6-L63 -> 1.03209408 | M64: =SUMPRODUCT((Inputs!$B$24:$B$53=$B64)*(Inputs!$J$24:$J$53)*(Inputs!T$24:T$53))*Inputs!$AJ$23/10^6-M63 -> 1.032094 | N64: =SUMPRODUCT((Inputs!$B$24:$B$53=$B64)*(Inputs!$J$24:$J$53)*(Inputs!U$24:U$53))*Inputs!$AJ$23/10^6-N63 -> 1.032094 | O64: =SUMPRODUCT((Inputs!$B$24:$B$53=$B64)*(Inputs!$J$24:$J$53)*(Inputs!V$24:V$53))*Inputs!$AJ$23/10^6-O63 -> 1.032094 | P64: 0 | Q64: 4.3863996 | R64: Internal staffing – SCADA/AEMS system
B65: System Data Analyst ( Network Model Management) | C65: Real $2025 | D65: $Million | E65: =SUMPRODUCT((Inputs!$B$24:$B$53=$B65)*(Inputs!$J$24:$J$53)*(Inputs!L$24:L$53))*Inputs!$AJ$23/10^6 -> 0 | F65: =SUMPRODUCT((Inputs!$B$24:$B$53=$B65)*(Inputs!$J$24:$J$53)*(Inputs!M$24:M$53))*Inputs!$AJ$23/10^6 -> 0 | G65: =SUMPRODUCT((Inputs!$B$24:$B$53=$B65)*(Inputs!$J$24:$J$53)*(Inputs!N$24:N$53))*Inputs!$AJ$23/10^6 -> 0 | H65: =SUMPRODUCT((Inputs!$B$24:$B$53=$B65)*(Inputs!$J$24:$J$53)*(Inputs!O$24:O$53))*Inputs!$AJ$23/10^6 -> 0 | I65: =SUMPRODUCT((Inputs!$B$24:$B$53=$B65)*(Inputs!$J$24:$J$53)*(Inputs!P$24:P$53))*Inputs!$AJ$23/10^6 -> 0 | J65: =SUMPRODUCT((Inputs!$B$24:$B$53=$B65)*(Inputs!$J$24:$J$53)*(Inputs!Q$24:Q$53))*Inputs!$AJ$23/10^6 -> 0 | K65: =SUMPRODUCT((Inputs!$B$24:$B$53=$B65)*(Inputs!$J$24:$J$53)*(Inputs!R$24:R$53))*Inputs!$AJ$23/10^6 -> 0.061307136 | L65: =SUMPRODUCT((Inputs!$B$24:$B$53=$B65)*(Inputs!$J$24:$J$53)*(Inputs!S$24:S$53))*Inputs!$AJ$23/10^6 -> 0.245228544 | M65: =SUMPRODUCT((Inputs!$B$24:$B$53=$B65)*(Inputs!$J$24:$J$53)*(Inputs!T$24:T$53))*Inputs!$AJ$23/10^6 -> 0.245228544 | N65: =SUMPRODUCT((Inputs!$B$24:$B$53=$B65)*(Inputs!$J$24:$J$53)*(Inputs!U$24:U$53))*Inputs!$AJ$23/10^6 -> 0.245228544 | O65: =SUMPRODUCT((Inputs!$B$24:$B$53=$B65)*(Inputs!$J$24:$J$53)*(Inputs!V$24:V$53))*Inputs!$AJ$23/10^6 -> 0.245228544 | P65: 0 | Q65: 1.042221312 | R65: Internal staffing – network model management
B66: Transgrid scope - Hardware maintenance and software licensing uplift | C66: Real $2025 | D66: $Million | E66: =SUMPRODUCT((Inputs!$B$24:$B$53=$B66)*(Inputs!$J$24:$J$53)*(Inputs!L$24:L$53))*Inputs!$AJ$23/10^6 -> 0 | F66: =SUMPRODUCT((Inputs!$B$24:$B$53=$B66)*(Inputs!$J$24:$J$53)*(Inputs!M$24:M$53))*Inputs!$AJ$23/10^6 -> 0 | G66: =SUMPRODUCT((Inputs!$B$24:$B$53=$B66)*(Inputs!$J$24:$J$53)*(Inputs!N$24:N$53))*Inputs!$AJ$23/10^6 -> 0 | H66: =SUMPRODUCT((Inputs!$B$24:$B$53=$B66)*(Inputs!$J$24:$J$53)*(Inputs!O$24:O$53))*Inputs!$AJ$23/10^6 -> 0 | I66: =SUMPRODUCT((Inputs!$B$24:$B$53=$B66)*(Inputs!$J$24:$J$53)*(Inputs!P$24:P$53))*Inputs!$AJ$23/10^6 -> 0 | J66: =SUMPRODUCT((Inputs!$B$24:$B$53=$B66)*(Inputs!$J$24:$J$53)*(Inputs!Q$24:Q$53))*Inputs!$AJ$23/10^6 -> 0.1125 | K66: =SUMPRODUCT((Inputs!$B$24:$B$53=$B66)*(Inputs!$J$24:$J$53)*(Inputs!R$24:R$53))*Inputs!$AJ$23/10^6 -> 0.1975 | L66: =SUMPRODUCT((Inputs!$B$24:$B$53=$B66)*(Inputs!$J$24:$J$53)*(Inputs!S$24:S$53))*Inputs!$AJ$23/10^6 -> 0.21 | M66: =SUMPRODUCT((Inputs!$B$24:$B$53=$B66)*(Inputs!$J$24:$J$53)*(Inputs!T$24:T$53))*Inputs!$AJ$23/10^6 -> 0.21 | N66: =SUMPRODUCT((Inputs!$B$24:$B$53=$B66)*(Inputs!$J$24:$J$53)*(Inputs!U$24:U$53))*Inputs!$AJ$23/10^6 -> 0.21 | O66: =SUMPRODUCT((Inputs!$B$24:$B$53=$B66)*(Inputs!$J$24:$J$53)*(Inputs!V$24:V$53))*Inputs!$AJ$23/10^6 -> 0.21 | P66: 0.1125 | Q66: 1.15 | R66: Hardware support
B67: Engineer ( Operational Planner) | C67: Real $2025 | D67: $Million | E67: =SUMPRODUCT((Inputs!$B$24:$B$53=$B67)*(Inputs!$J$24:$J$53)*(Inputs!L$24:L$53))*Inputs!$AJ$23/10^6 -> 0 | F67: =SUMPRODUCT((Inputs!$B$24:$B$53=$B67)*(Inputs!$J$24:$J$53)*(Inputs!M$24:M$53))*Inputs!$AJ$23/10^6 -> 0 | G67: =SUMPRODUCT((Inputs!$B$24:$B$53=$B67)*(Inputs!$J$24:$J$53)*(Inputs!N$24:N$53))*Inputs!$AJ$23/10^6 -> 0 | H67: =SUMPRODUCT((Inputs!$B$24:$B$53=$B67)*(Inputs!$J$24:$J$53)*(Inputs!O$24:O$53))*Inputs!$AJ$23/10^6 -> 0 | I67: =SUMPRODUCT((Inputs!$B$24:$B$53=$B67)*(Inputs!$J$24:$J$53)*(Inputs!P$24:P$53))*Inputs!$AJ$23/10^6 -> 0 | J67: =SUMPRODUCT((Inputs!$B$24:$B$53=$B67)*(Inputs!$J$24:$J$53)*(Inputs!Q$24:Q$53))*Inputs!$AJ$23/10^6 -> 0.40871424 | K67: =SUMPRODUCT((Inputs!$B$24:$B$53=$B67)*(Inputs!$J$24:$J$53)*(Inputs!R$24:R$53))*Inputs!$AJ$23/10^6 -> 0.61307136 | L67: =SUMPRODUCT((Inputs!$B$24:$B$53=$B67)*(Inputs!$J$24:$J$53)*(Inputs!S$24:S$53))*Inputs!$AJ$23/10^6 -> 0.980914176 | M67: =SUMPRODUCT((Inputs!$B$24:$B$53=$B67)*(Inputs!$J$24:$J$53)*(Inputs!T$24:T$53))*Inputs!$AJ$23/10^6 -> 1.144399872 | N67: =SUMPRODUCT((Inputs!$B$24:$B$53=$B67)*(Inputs!$J$24:$J$53)*(Inputs!U$24:U$53))*Inputs!$AJ$23/10^6 -> 1.471371264 | O67: =SUMPRODUCT((Inputs!$B$24:$B$53=$B67)*(Inputs!$J$24:$J$53)*(Inputs!V$24:V$53))*Inputs!$AJ$23/10^6 -> 1.471371264 | P67: 0.40871424 | Q67: 6.089842176 | R67: Internal staffing – planning operations
B68: Total (excluding labour escalation and debt raising costs) | E68: =SUM(E54:E67) -> 0 | F68: =SUM(F54:F67) -> 0 | G68: 0 | H68: 0 | I68: 0 | J68: 0.7840634067 | K68: 2.90326347 | L68: 6.513005616 | M68: 7.395234261 | N68: 8.071219712 | O68: 8.071219712 | P68: 0.7840634067 | Q68: 33.73800618
B69: Real input cost escalation | C69: Real $2025 | D69: $Million | E69: =E11*E$49 -> 0 | F69: =F11*F$49 -> 0 | G69: 0 | H69: 0 | I69: 0 | J69: 0.001568549086 | K69: 0.01205667482 | L69: 0.04667590383 | M69: 0.07428984134 | N69: 0.1173470449 | O69: 0.1444120247 | P69: 0.001568549086 | Q69: 0.3963500386
B70: Debt raising costs | C70: Real $2025 | D70: $Million | E70: =E15*E$49 -> 0 | F70: =F15*F$49 -> 0 | G70: 0.002450439091 | H70: 0.004428835557 | I70: 0.004921146113 | J70: 0.01511901137 | K70: 0 | L70: 0 | M70: 0 | N70: 0 | O70: 0 | P70: 0.02691943213 | Q70: 0.02691943213
B71: Total Operating Expenditure | C71: Real $2025 | D71: $Million | E71: =SUM(E68:E70) -> 0 | F71: =SUM(F68:F70) -> 0 | G71: 0.002450439091 | H71: 0.004428835557 | I71: 0.004921146113 | J71: 0.8007509671 | K71: 2.915320145 | L71: 6.55968152 | M71: 7.469524103 | N71: 8.188566757 | O71: 8.215631737 | P71: 0.8125513879 | Q71: 34.16127565
A73: =IF(SUM(E73:O73)=0,0,1) -> 0 | B73: Check - Reconciliation | E73: =IF(ROUND(E71-E70-E47,3)=0,0,1) -> 0 | F73: =IF(ROUND(F71-F70-F47,3)=0,0,1) -> 0 | G73: 0 | H73: 0 | I73: 0 | J73: 0 | K73: 0 | L73: 0 | M73: 0 | N73: 0 | O73: 0
B75: Operating Costs - by item | F75: =F$5 -> 2023-28 Regulatory Period | K75: =K$5 -> 2028-33 Regulatory Period | P75: =$P$5 -> Total | Q75: =$Q$5 -> Total
C76: Dollar basis | D76: Units | E76: =Inputs!L$14 -> 2023 | F76: =Inputs!M$14 -> 2024 | G76: =Inputs!N$14 -> 2025 | H76: =Inputs!O$14 -> 2026 | I76: =Inputs!P$14 -> 2027 | J76: =Inputs!Q$14 -> 2028 | K76: =Inputs!R$14 -> 2029 | L76: =Inputs!S$14 -> 2030 | M76: =Inputs!T$14 -> 2031 | N76: =Inputs!U$14 -> 2032 | O76: =Inputs!V$14 -> 2033 | P76: =$P$6 -> 2023-28 | Q76: =$Q$6 -> All years
B78: SCADA/AEMS system | C78: Real $2025 | D78: $Million | E78: =SUMIF($R$54:$R$67,$B78,E$54:E$67) -> 0 | F78: =SUMIF($R$54:$R$67,$B78,F$54:F$67) -> 0 | G78: 0 | H78: 0 | I78: 0 | J78: 0 | K78: 0.25485 | L78: 1.0194 | M78: 1.0194 | N78: 1.0194 | O78: 1.0194 | P78: =SUM(F78:J78) -> 0 | Q78: =SUM(E78:O78) -> 4.33245
B79: Data modelling and network management | C79: Real $2025 | D79: $Million | E79: 0 | F79: 0 | G79: 0 | H79: 0 | I79: 0 | J79: 0 | K79: 0.160875 | L79: 0.6435 | M79: 0.6435 | N79: 0.6435 | O79: 0.6435 | P79: =SUM(F79:J79) -> 0 | Q79: =SUM(E79:O79) -> 2.734875
B80: Operational planning system and training LMS | C80: Real $2025 | D80: $Million | E80: 0 | F80: 0 | G80: 0 | H80: 0 | I80: 0 | J80: 0.2628491667 | K80: 0.844024 | L80: 0.327419 | M80: 0.690243 | N80: 0.327419 | O80: 0.327419 | P80: =SUM(F80:J80) -> 0.2628491667 | Q80: =SUM(E80:O80) -> 2.779373167
B81: Hardware support | C81: Real $2025 | D81: $Million | E81: 0 | F81: 0 | G81: 0 | H81: 0 | I81: 0 | J81: 0.1125 | K81: 0.45450775 | L81: 1.238031 | M81: 1.238031 | N81: 1.238031 | O81: 1.238031 | P81: =SUM(F81:J81) -> 0.1125 | Q81: =SUM(E81:O81) -> 5.51913175
B82: Wide area monitoring | C82: Real $2025 | D82: $Million | E82: 0 | F82: 0 | G82: 0 | H82: 0 | I82: 0 | J82: 0 | K82: 0 | L82: 0 | M82: 0.1924333333 | N82: 0.5773 | O82: 0.5773 | P82: 0 | Q82: 1.347033333
B83: Alarm management technologies – software/licensing | C83: Real $2025 | D83: $Million | E83: 0 | F83: 0 | G83: 0 | H83: 0 | I83: 0 | J83: 0 | K83: 0.205 | L83: 0.82 | M83: 0.82 | N83: 0.82 | O83: 0.82 | P83: 0 | Q83: 3.485
B84: Internal staffing – SCADA/AEMS system | C84: Real $2025 | D84: $Million | E84: =SUMIF($R$54:$R$67,$B84,E$54:E$67)*Inputs!L$17 -> 0 | F84: =SUMIF($R$54:$R$67,$B84,F$54:F$67)*Inputs!M$17 -> 0 | G84: =SUMIF($R$54:$R$67,$B84,G$54:G$67)*Inputs!N$17 -> 0 | H84: =SUMIF($R$54:$R$67,$B84,H$54:H$67)*Inputs!O$17 -> 0 | I84: =SUMIF($R$54:$R$67,$B84,I$54:I$67)*Inputs!P$17 -> 0 | J84: =SUMIF($R$54:$R$67,$B84,J$54:J$67)*Inputs!Q$17 -> 0 | K84: =SUMIF($R$54:$R$67,$B84,K$54:K$67)*Inputs!R$17 -> 0.2606565187 | L84: =SUMIF($R$54:$R$67,$B84,L$54:L$67)*Inputs!S$17 -> 1.050105342 | M84: =SUMIF($R$54:$R$67,$B84,M$54:M$67)*Inputs!T$17 -> 1.05763818 | N84: =SUMIF($R$54:$R$67,$B84,N$54:N$67)*Inputs!U$17 -> 1.065225137 | O84: =SUMIF($R$54:$R$67,$B84,O$54:O$67)*Inputs!V$17 -> 1.072866519 | P84: 0 | Q84: 4.506491697
B85: Internal staffing – training simulator maintenance | C85: Real $2025 | D85: $Million | E85: =SUMIF($R$54:$R$67,$B85,E$54:E$67)*Inputs!L$17 -> 0 | F85: =SUMIF($R$54:$R$67,$B85,F$54:F$67)*Inputs!M$17 -> 0 | G85: =SUMIF($R$54:$R$67,$B85,G$54:G$67)*Inputs!N$17 -> 0 | H85: =SUMIF($R$54:$R$67,$B85,H$54:H$67)*Inputs!O$17 -> 0 | I85: =SUMIF($R$54:$R$67,$B85,I$54:I$67)*Inputs!P$17 -> 0 | J85: =SUMIF($R$54:$R$67,$B85,J$54:J$67)*Inputs!Q$17 -> 0 | K85: =SUMIF($R$54:$R$67,$B85,K$54:K$67)*Inputs!R$17 -> 0.05213130374 | L85: =SUMIF($R$54:$R$67,$B85,L$54:L$67)*Inputs!S$17 -> 0.2100210685 | M85: =SUMIF($R$54:$R$67,$B85,M$54:M$67)*Inputs!T$17 -> 0.2115276525 | N85: =SUMIF($R$54:$R$67,$B85,N$54:N$67)*Inputs!U$17 -> 0.2130450439 | O85: =SUMIF($R$54:$R$67,$B85,O$54:O$67)*Inputs!V$17 -> 0.2145733204 | P85: 0 | Q85: 0.9012983889
B86: Internal staffing – network model management | C86: Real $2025 | D86: $Million | E86: =SUMIF($R$54:$R$67,$B86,E$54:E$67)*Inputs!L$17 -> 0 | F86: =SUMIF($R$54:$R$67,$B86,F$54:F$67)*Inputs!M$17 -> 0 | G86: =SUMIF($R$54:$R$67,$B86,G$54:G$67)*Inputs!N$17 -> 0 | H86: =SUMIF($R$54:$R$67,$B86,H$54:H$67)*Inputs!O$17 -> 0 | I86: =SUMIF($R$54:$R$67,$B86,I$54:I$67)*Inputs!P$17 -> 0 | J86: =SUMIF($R$54:$R$67,$B86,J$54:J$67)*Inputs!Q$17 -> 0 | K86: =SUMIF($R$54:$R$67,$B86,K$54:K$67)*Inputs!R$17 -> 0.06193274412 | L86: =SUMIF($R$54:$R$67,$B86,L$54:L$67)*Inputs!S$17 -> 0.2495080721 | M86: =SUMIF($R$54:$R$67,$B86,M$54:M$67)*Inputs!T$17 -> 0.2512979157 | N86: =SUMIF($R$54:$R$67,$B86,N$54:N$67)*Inputs!U$17 -> 0.2531005988 | O86: =SUMIF($R$54:$R$67,$B86,O$54:O$67)*Inputs!V$17 -> 0.2549162133 | P86: 0 | Q86: 1.070755544
B87: Internal staffing – planning operations | C87: Real $2025 | D87: $Million | E87: =SUMIF($R$54:$R$67,$B87,E$54:E$67)*Inputs!L$17+(E66*Inputs!L$17-E66) -> 0 | F87: =SUMIF($R$54:$R$67,$B87,F$54:F$67)*Inputs!M$17+(F66*Inputs!M$17-F66) -> 0 | G87: =SUMIF($R$54:$R$67,$B87,G$54:G$67)*Inputs!N$17+(G66*Inputs!N$17-G66) -> 0 | H87: =SUMIF($R$54:$R$67,$B87,H$54:H$67)*Inputs!O$17+(H66*Inputs!O$17-H66) -> 0 | I87: =SUMIF($R$54:$R$67,$B87,I$54:I$67)*Inputs!P$17+(I66*Inputs!P$17-I66) -> 0 | J87: =SUMIF($R$54:$R$67,$B87,J$54:J$67)*Inputs!Q$17+(J66*Inputs!Q$17-J66) -> 0.4102827891 | K87: =SUMIF($R$54:$R$67,$B87,K$54:K$67)*Inputs!R$17+(K66*Inputs!R$17-K66) -> 0.6213428282 | L87: =SUMIF($R$54:$R$67,$B87,L$54:L$67)*Inputs!S$17+(L66*Inputs!S$17-L66) -> 1.001697037 | M87: =SUMIF($R$54:$R$67,$B87,M$54:M$67)*Inputs!T$17+(M66*Inputs!T$17-M66) -> 1.177921077 | N87: =SUMIF($R$54:$R$67,$B87,N$54:N$67)*Inputs!U$17+(N66*Inputs!U$17-N66) -> 1.52534478 | O87: =SUMIF($R$54:$R$67,$B87,O$54:O$67)*Inputs!V$17+(O66*Inputs!V$17-O66) -> 1.537793258 | P87: 0.4102827891 | Q87: 6.274381769
B88: Internal staffing – control room/forecasting | C88: Real $2025 | D88: $Million | E88: =SUMIF($R$54:$R$67,$B88,E$54:E$67)*Inputs!L$17 -> 0 | F88: =SUMIF($R$54:$R$67,$B88,F$54:F$67)*Inputs!M$17 -> 0 | G88: =SUMIF($R$54:$R$67,$B88,G$54:G$67)*Inputs!N$17 -> 0 | H88: =SUMIF($R$54:$R$67,$B88,H$54:H$67)*Inputs!O$17 -> 0 | I88: =SUMIF($R$54:$R$67,$B88,I$54:I$67)*Inputs!P$17 -> 0 | J88: =SUMIF($R$54:$R$67,$B88,J$54:J$67)*Inputs!Q$17 -> 0 | K88: =SUMIF($R$54:$R$67,$B88,K$54:K$67)*Inputs!R$17 -> 0 | L88: =SUMIF($R$54:$R$67,$B88,L$54:L$67)*Inputs!S$17 -> 0 | M88: =SUMIF($R$54:$R$67,$B88,M$54:M$67)*Inputs!T$17 -> 0.1675319438 | N88: =SUMIF($R$54:$R$67,$B88,N$54:N$67)*Inputs!U$17 -> 0.5062011975 | O88: =SUMIF($R$54:$R$67,$B88,O$54:O$67)*Inputs!V$17 -> 0.5098324266 | P88: 0 | Q88: 1.183565568
B89: Total (excluding labour escalation and debt raising costs) | E89: =SUM(E78:E88) -> 0 | F89: =SUM(F78:F88) -> 0 | G89: 0 | H89: 0 | I89: 0 | J89: 0.7856319558 | K89: 2.915320145 | L89: 6.55968152 | M89: 7.469524103 | N89: 8.188566757 | O89: 8.215631737 | P89: 0.7856319558 | Q89: 34.13435622
B90: Debt raising costs | C90: Real $2025 | D90: $Million | E90: =E70 -> 0 | F90: =F70 -> 0 | G90: 0.002450439091 | H90: 0.004428835557 | I90: 0.004921146113 | J90: 0.01511901137 | K90: 0 | L90: 0 | M90: 0 | N90: 0 | O90: 0 | P90: 0.02691943213 | Q90: 0.02691943213
B91: Total Operating Expenditure | C91: Real $2025 | D91: $Million | E91: =SUM(E89:E90) -> 0 | F91: =SUM(F89:F90) -> 0 | G91: 0.002450439091 | H91: 0.004428835557 | I91: 0.004921146113 | J91: 0.8007509671 | K91: 2.915320145 | L91: 6.55968152 | M91: 7.469524103 | N91: 8.188566757 | O91: 8.215631737 | P91: 0.8125513879 | Q91: 34.16127565
A93: =IF(SUM(E93:O93)=0,0,1) -> 0 | B93: Check - Reconciliation | E93: =IF(ROUND(E91-E71,3)=0,0,1) -> 0 | F93: =IF(ROUND(F91-F71,3)=0,0,1) -> 0 | G93: 0 | H93: 0 | I93: 0 | J93: 0 | K93: 0 | L93: 0 | M93: 0 | N93: 0 | O93: 0
B95: End
